Cogmind - Beta 13 @@@ ROGUE MODE // 2024.04.30 @ 01:26:31 Player: Wyvric Result: Exoskeleton Destroyed Performance ------------- Evolutions (9) 4500 Regions Visited (33) 6600 Robots Destroyed (253) 1265 Value Destroyed (12272) 12272 Prototype IDs (76) 1520 Alien Tech Used (11) 2200 Bonus (27479) 27479 TOTAL SCORE: 55836 Bonus ------- Triggered High Security 500 Triggered Max Security 2000 High Alert Combat Kills 990 Follower Combat Kills 1460 Network Hubs Disabled 400 Met Zhirov 300 Met Warlord at Base 500 MAIN.C Attacked Warlord 500 Warlord Defense Kills 670 Met R17 at Cetus 500 Read Decrypted Archives 300 Used Core Reset Matrix 3000 Scanned by Researcher 500 Pursued by Intercept 1000 Integrated Exoskeleton 5000 Met MAIN.C 5000 Destroyed MAIN.C Shell 5000 Friendly Fire -141 Cogmind --------- Core Integrity 0/1600 Matter 300/300 Energy 391/1300 System Corruption 0% Temperature Cool (0) Movement Walking (30) Location -1/Command Parts ------- > --- POWER (2) -------- (None) > --- PROPULSION (3) --- Sigix Exoskeleton > --- UTILITY (5) ------ Medium Storage Unit Experimental Energy Well Long-range Tractor Beam Microwarp Drive > --- WEAPON (4) ------- Sigix Sheargun Sigix Sheargun > --- INVENTORY (10) --- Vortex Chain Reactor Advanced Matter Compressor (400) Particle Accelerator Experimental Force Field Null Cannon Improved Potential Cannon Omega Cannon Peak State ------------ > --- POWER ------------ Vortex Chain Reactor > --- PROPULSION ------- Sigix Exoskeleton > --- UTILITY ---------- High-capacity Storage Unit Gravity Neutralizer Experimental Force Field Microwarp Drive > --- WEAPON ----------- Improved Potential Cannon Perforator > --- INVENTORY -------- Quantum Reactor Advanced Coolant Injector Medium Storage Unit Experimental Energy Well Advanced Matter Compressor Particle Accelerator Long-range Tractor Beam Sigix Sheargun Sigix Sheargun Null Cannon Omega Cannon Core Stripper [Rating: 292] Favorites ----------- Power Constructs Engine Ion Engine Power Core Fusion Compressor Reactor Constructs Propulsion Constructs Treads Light Treads Leg Constructs Wheel Wheel Hover Unit Cooled Antigrav System Flight Unit Field Propulsion Array Utility Armored Scrap Engine Device Armored Scrap Engine Storage Huge Storage Unit Processor Advanced Signal Interpreter Hackware Hacking Suite Protection Hardened Heavy Armor Plating Artifact Microwarp Drive Weapon Constructs Energy Gun Medium Laser Energy Cannon Vortex Cannon Ballistic Gun Constructs Ballistic Cannon Constructs Launcher Improved Proton Missile Launcher Special Weapon Improved Plasma Cutter Impact Weapon Heavy Mace Slashing Weapon Katana Piercing Weapon Force Lance Build | -11 -10 -10 -9 -9 -9 -8 -8 -8 -8 -6 -6 -6 -6 -6 -5 -5 -5 -5 -4 -4 -4 -4 -4 -4 -4 -3 -3 -3 -2 -2 -2 -1 -1 ------- Run | Yrd Mat Min Mat Min Exi Min Mat Sto Rec Fac Ext Cet Arc Hub Fac Upp Upp Zhi Pro Fac Was Fac Upp Upp War Pro Res Tes Res Qua Sec Acc Com Slots Evolved 18 | . . . 2 . . . 2 . . 4 . . . . 2 . . . . 2 . . . . . . 2 . 2 . . 2 . Power 2 | . . . . . . . . . . . . . . . . . . . . 1 . . . . . . . . 1 . . . . Propulsion 6 | . . . . . . . 2 . . 2 . . . . . . . . . 1 . . . . . . . . 1 . . . . Utility 10 | . . . 2 . . . . . . 2 . . . . 2 . . . . . . . . . . . 2 . . . . 2 . Weapon . | . . . . . . . . . . . . . . . . . . . . . . . . . . . . . . . . . . Parts Attached 595 | 6 1 4 30 1 1 8 3 19 7 7 18 11 1 15 25 15 21 12 24 9 3 42 8 24 24 7 21 53 59 33 47 18 18 Power 30 | 1 . . 4 1 . . . 4 . . . . . . . . 1 . . . . 2 . . 2 1 2 4 1 2 1 2 2 Engine 9 | 1 . . 4 1 . . . 3 . . . . . . . . . . . . . . . . . . . . . . . . . Core 5 | . . . . . . . . 1 . . . . . . . . . . . . . . . . . 1 2 . . . . 1 . Reactor 16 | . . . . . . . . . . . . . . . . . 1 . . . . 2 . . 2 . . 4 1 2 1 1 2 Propulsion 74 | 2 . 2 5 . . . 2 5 2 1 3 3 . . 2 . . 4 . 1 . 8 2 5 7 . 3 6 10 1 . . . Treads 16 | . . 2 4 . . . 1 . . 1 . 2 . . 1 . . . . . . . . . 3 . . . 1 1 . . . Leg 16 | 2 . . . . . . 1 4 . . 1 1 . . . . . . . . . . . 1 . . . . 6 . . . . Wheel 6 | . . . 1 . . . . . 1 . 2 . . . . . . . . . . . 1 1 . . . . . . . . . Hover 20 | . . . . . . . . . 1 . . . . . . . . 2 . . . 5 . 2 2 . . 5 3 . . . . Flight 16 | . . . . . . . . 1 . . . . . . 1 . . 2 . 1 . 3 1 1 2 . 3 1 . . . . . Utility 353 | 1 1 1 12 . 1 1 1 6 2 5 2 1 . 12 20 14 17 6 24 8 3 29 6 17 9 4 11 35 39 19 30 7 9 Device 235 | . . . 1 . . . . 1 1 4 . . . 6 15 10 11 3 17 3 3 18 4 11 5 2 7 33 35 15 21 4 5 Storage 23 | 1 . 1 . . 1 . . 2 1 . . . . 1 . . . . . 1 . 2 1 . . 1 1 . 2 4 1 1 2 Processor 17 | . . . . . . . . . . 1 1 1 . . . 1 1 . 1 . . . . 1 1 . 2 2 2 . . 2 1 Hackware 5 | . . . . . . . . 1 . . . . . 1 . . . . . 2 . . . . . . 1 . . . . . . Protection 66 | . 1 . 11 . . 1 1 2 . . 1 . . 4 5 3 5 3 6 2 . 9 1 5 3 1 . . . . 2 . . Artifact 7 | . . . . . . . . . . . . . . . . . . . . . . . . . . . . . . . 6 . 1 Weapon 138 | 2 . 1 9 . . 7 . 4 3 1 13 7 1 3 3 1 3 2 . . . 3 . 2 6 2 5 8 9 11 16 9 7 Energy Gun 18 | 2 . . 3 . . . . 2 . . 1 2 . . . . . . . . . . . . 1 1 . 2 . . . 2 2 Energy Cannon 43 | . . . 1 . . . . . . . 2 . . 2 . . . . . . . . . 1 3 . . 1 6 7 11 5 4 Ballistic Gun 12 | . . 1 5 . . 4 . . 1 . . . . . . . . . . . . . . . . . . . 1 . . . . Ballistic Cannon 8 | . . . . . . . . . 1 . . . . . . . . . . . . . . . . . . 1 . 1 2 2 1 Launcher 19 | . . . . . . 3 . 1 . . 1 5 . . . 1 2 . . . . . . . 2 1 1 2 . . . . . Special Weapon 2 | . . . . . . . . . . . . . . . 1 . . 1 . . . . . . . . . . . . . . . Impact Weapon 23 | . . . . . . . . 1 . . 6 . . . 2 . 1 1 . . . 3 . 1 . . 3 . . 2 3 . . Slashing Weapon 9 | . . . . . . . . . 1 1 3 . 1 1 . . . . . . . . . . . . . 1 1 . . . . Piercing Weapon 4 | . . . . . . . . . . . . . . . . . . . . . . . . . . . 1 1 1 1 . . . Special Melee Weapon . | . . . . . . . . . . . . . . . . . . . . . . . . . . . . . . . . . . Unidentified Prototypes 25 | . . . . . . . . 4 . . . 1 . . 1 . . 3 . . . . . . 7 . . . 3 5 1 . . Parts Lost 56 | . 1 1 14 . . 2 3 3 . . 2 1 . 2 1 . 1 . . 1 . 2 . 7 4 2 1 7 1 . . . . Power 8 | . . 1 2 . . . . . . . . . . . . . 1 . . . . 1 . 1 1 . . 1 . . . . . Propulsion 11 | . . . 3 . . . 2 1 . . 1 . . . . . . . . 1 . . . 1 . . . 1 1 . . . . Utility 21 | . . . 4 . . 2 1 2 . . 1 . . . 1 . . . . . . . . 4 2 1 1 2 . . . . . Weapon 16 | . 1 . 5 . . . . . . . . 1 . 2 . . . . . . . 1 . 1 1 1 . 3 . . . . . Highest Loss Streak 9 | . 1 1 9 . . 1 3 3 . . 1 1 . 1 1 . 1 . . 1 . 1 . 7 2 2 1 2 1 . . . . To Critical Strikes 1 | . . . . . . . . . . . . . . . . . . . . . . . . . . . . 1 . . . . . Average Slot Usage (%) 69 | . 86 99 91 100 100 92 76 93 79 66 62 65 66 63 68 70 69 59 70 68 67 70 59 62 65 49 67 75 63 59 47 35 63 Engine 3 | . 14 13 8 11 11 11 9 9 8 6 5 1 . . . . . . . . . . . . 2 . . . . . . . . Core 1 | . . . . . . . . . . . . . . . 4 5 . . . . . . . . 2 5 4 . . 2 1 . . Reactor 1 | . . . . . . . . . . . . 4 6 6 . . 4 4 5 5 5 7 5 . . . . 7 4 5 3 . 4 Treads 4 | . . 1 19 22 22 22 18 2 . 9 . 4 13 10 2 11 11 1 . . . . 2 . 1 . . . . 1 2 . . Leg 4 | . 28 25 . . . . . 30 17 . 11 6 . . . . . . . . . . . 3 3 . . . 2 2 5 7 7 Hover 1 | . . . . . . . . . 5 . . . . . . . . 1 . . . 11 . 5 4 . . 12 7 . . . . Flight 3 | . . . . . . . . . 1 . . . . 1 6 . . 2 11 15 14 3 9 3 3 4 11 3 . 1 . . . Device 11 | . . . 1 . . . . 1 8 13 7 6 6 11 19 16 15 12 16 8 14 12 13 16 16 15 22 15 22 21 11 4 16 Storage 6 | . 14 14 11 11 11 11 9 9 9 6 6 6 6 6 5 5 5 5 5 5 5 5 5 5 5 5 4 4 4 4 5 7 9 Processor 7 | . . . . . . . . . . 6 11 13 13 6 5 9 16 17 17 8 5 5 5 8 7 5 11 17 11 13 4 . . Hackware 1 | . . . . . . . . 7 9 6 2 . . 4 . . . . . 9 10 9 . . . . 2 4 . . . . . Protection 7 | . 2 14 29 33 33 26 20 15 . . . 6 6 3 8 7 1 . . 3 . 2 5 4 5 4 . . . . . . . Energy Gun 2 | . 27 14 2 . . . . 5 . 3 1 7 . . 1 5 5 2 . 3 5 3 . . 3 1 2 . . . 1 1 12 Energy Cannon 1 | . . . 3 . . . . . 2 . 2 . . 4 . . . . . . . . . . 1 4 . . 1 1 3 6 7 Ballistic Gun 4 | . . 14 14 22 22 21 18 5 5 . 1 . . 1 4 . . 2 5 2 . 1 6 . . . 1 1 4 1 . . . Ballistic Cannon 1 | . . . . . . . . . 1 2 . . . . . . . 2 5 5 5 2 1 4 . . . . . 1 . . . Impact Weapon 1 | . . . . . . . . 6 . . 4 . . . 3 3 1 1 . . . 2 2 3 . . 1 . . . 1 . . Naked Turns . | . . . . . . . . . . . . . . . . . . . . . . . . . . . . . . . . . . Heaviest Build 180 | 14 15 30 40 39 59 59 59 104 96 93 104 104 104 110 112 117 129 112 121 121 81 134 152 132 159 152 125 136 165 157 180 128 108 Greatest Support 187 | 20 20 40 40 40 40 40 60 56 56 51 77 124 124 173 186 185 173 173 116 125 143 179 95 76 157 129 128 132 154 187 153 72 60 Greatest Overweight (x) 32 | 4 . 1 3 . 1 1 2 2 7 7 32 1 . . . . . 1 1 1 . 1 8 32 2 1 . 1 1 1 1 2 1 Average Overweight (x) . | 1 . . . . . 1 . 1 3 1 2 . . . . . . . . . . . 1 2 1 . . . . . . . . Largest Inventory Capacity 25 | 8 8 15 15 15 20 20 20 25 25 25 25 25 25 25 25 25 25 25 25 25 20 25 25 25 25 25 25 25 25 25 25 20 20 Average Capacity 22 | 7 8 15 15 15 18 20 20 22 25 25 25 25 25 25 25 25 25 25 25 24 20 24 24 25 25 20 22 25 24 21 22 20 10 Most Carried 25 | 8 7 15 15 15 16 20 20 25 25 25 25 25 25 25 25 25 25 25 25 25 20 25 25 25 25 20 25 25 25 25 25 20 15 Average Carried 21 | 4 6 10 14 14 15 19 19 20 22 24 22 24 23 24 24 24 24 23 24 23 19 23 23 24 23 18 20 24 23 20 21 18 8 Final Capacity 25 | 8 8 15 15 15 20 20 20 25 25 25 25 25 25 25 25 25 25 25 25 20 20 20 25 25 25 20 25 25 25 25 20 20 10 Final Carried 25 | 6 7 15 15 15 16 20 19 25 25 23 23 23 25 23 25 25 25 25 25 20 20 20 25 19 21 20 24 24 23 25 20 15 10 Scrap Engine Consumption 395 | . . . . . . . . . 34 14 64 17 . 9 21 5 4 9 6 2 5 25 6 22 44 8 14 31 33 20 2 . . Constructs Created 23 | . . . . . . . . . 3 . 4 . . 2 . . . 3 . . . . 1 1 3 2 . 1 3 . . . . Constructs Modified 133 | . . . . . . . . . 8 5 23 2 . 3 5 . . 10 2 1 1 8 3 10 12 6 2 4 14 12 2 . . Class Distribution -------------------- 44% | Mutant 12% | Construct 12% | Commander-Construct 11% | Scavenger-Mutant 4% | Derelict-Mutant 3% | Scavenger-Construct Dominant Class ---------------- Mutant | -10/Materials Mutant | -10/Mines Mutant | -9/Materials Scavenger-Mutant | -9/Mines Scavenger-Mutant | -9/Exiles Scavenger-Mutant | -8/Mines Mutant | -8/Materials Mutant | -8/Storage Commander-Construct | -8/Recycling Commander-Construct | -6/Factory Commander-Construct | -6/Extension Commander-Construct | -6/Cetus Construct | -6/Archives Construct | -6/Hub_04(d) Construct | -5/Factory Scavenger-Construct | -5/Upper Caves Scavenger-Skirmisher | -5/Upper Caves Construct | -5/Zhirov Construct | -4/Proximity Caves Hacker-Construct | -4/Factory Hacker-Construct | -4/Waste Hacker-Mutant | -4/Factory Mutant | -4/Upper Caves Mutant | -4/Upper Caves Mutant | -4/Warlord Mutant | -3/Proximity Caves Mutant | -3/Research Mutant | -3/Testing Mutant | -2/Research Mutant | -2/Quarantine Alien-Mutant | -2/Section 7 Alien-Sigix | -1/Access Alien-Sigix | -1/Command Resources | -11 -10 -10 -9 -9 -9 -8 -8 -8 -8 -6 -6 -6 -6 -6 -5 -5 -5 -5 -4 -4 -4 -4 -4 -4 -4 -3 -3 -3 -2 -2 -2 -1 -1 ----------- Run | Yrd Mat Min Mat Min Exi Min Mat Sto Rec Fac Ext Cet Arc Hub Fac Upp Upp Zhi Pro Fac Was Fac Upp Upp War Pro Res Tes Res Qua Sec Acc Com Matter Collected 9651 | 260 10 64 609 132 . 276 . 205 182 70 175 115 . 1 214 474 330 130 559 12 93 220 286 409 182 128 171 495 1540 390 1184 35 700 Remotely 1550 | . . . . . . . . . . . . . . . . . . . . . . . . 226 . . 23 . 206 . 828 . 267 Salvage Created 14088 | . 89 106 953 201 . 294 . 197 757 . 731 311 33 563 347 909 331 188 556 94 1383 338 98 1438 297 57 182 619 634 470 1261 239 412 Parts 458 | . 5 1 69 14 . 10 . 7 31 . 17 10 2 23 11 29 21 2 27 2 3 2 4 22 3 3 6 43 24 8 38 9 12 Haulers Intercepted . | . . . . . . . . . . . . . . . . . . . . . . . . . . . . . . . . . . Recyclers Shooed 6 | . . . . 1 . 1 . . . . . . . . 3 . . . . . . . . . . . . . . . 1 . . Parts Field Recycled . | . . . . . . . . . . . . . . . . . . . . . . . . . . . . . . . . . . Retrieved Matter . | . . . . . . . . . . . . . . . . . . . . . . . . . . . . . . . . . . Parts Self-Destructed 58 | . . . . . . . . . . . . . . . . 7 12 . 23 . . . . 13 . 3 . . . . . . . Prevented 26 | . . . . . . . . . . . . . . . . 16 3 1 . . . . 1 5 . . . . . . . . . Kills | -11 -10 -10 -9 -9 -9 -8 -8 -8 -8 -6 -6 -6 -6 -6 -5 -5 -5 -5 -4 -4 -4 -4 -4 -4 -4 -3 -3 -3 -2 -2 -2 -1 -1 ------- Run | Yrd Mat Min Mat Min Exi Min Mat Sto Rec Fac Ext Cet Arc Hub Fac Upp Upp Zhi Pro Fac Was Fac Upp Upp War Pro Res Tes Res Qua Sec Acc Com Combat Hostiles Destroyed 193 | . 2 2 23 6 . 7 . 3 3 . 7 4 . 8 2 12 10 . 20 1 6 5 1 18 5 3 2 11 11 1 13 2 5 Melee 12 | . . . . . . . . 1 1 . 4 . . . . . 1 . . . . . . 1 . . . 4 . . . . . Guns 54 | . 2 2 15 6 . 3 . . 1 . . . . . 2 . 1 . 6 . . 2 . 2 . 1 . 3 6 . . . 2 Cannons 44 | . . . 6 . . . . . 1 . 1 . . . . . . . 10 . . . . 11 . . . 2 5 . 7 . 1 AOE 43 | . . . 1 . . 4 . . . . . . . 4 . 8 7 . . . . . . . 5 2 1 2 . . 5 2 2 Classes Destroyed 23 | . 2 . 5 . . 3 . . 1 . 1 . . 1 . 1 . . 1 . 1 . . 2 . . . . 2 1 2 . . Worker 11 | . . . 2 . . . . . . . . . . 2 1 . . . . . . . . . . . . 4 . . 2 . . Builder 10 | . . . 1 . . . . . 2 . . . . 1 2 . . . . . . . . . . . . . . . 4 . . Tunneler 1 | . . . . . . . . . . . . . . 1 . . . . . . . . . . . . . . . . . . . Recycler 16 | . . . . . . 2 . 1 7 . 2 . . . 1 . . . . . . 1 . . . . . . . 1 1 . . Minesweeper 2 | . . . . . . . . . . . . . . . . . . . . . . . . 2 . . . . . . . . . Mechanic 2 | . . . . . . . . . . . . . . . . . . . . . . . . . . . . . . . 1 1 . Operator 8 | . 1 . . . . . . . . . . . . . 1 . . . . 1 . . . . . . 1 1 . 2 1 . . Drone 2 | . . . . . . . . . . . . . . . . . . . 2 . . . . . . . . . . . . . . Watcher 5 | . . . 1 . . . . . . . . . . . . . . . . . . 2 . . . . . . . . 1 1 . Swarmer 35 | . . . 4 3 . 3 . . . . . . . . . 4 4 . 13 . . . . 1 . . . . . . . . 3 Saboteur 1 | . . . . . . . . . . . . . . . . . . . . . . . . 1 . . . . . . . . . Grunt 66 | . 2 2 11 3 . 2 . 1 . . 4 . . 6 . 6 . . . . . 5 . 10 5 . . 1 4 . 4 . . Brawler 4 | . . . . . . 1 . . . . . . . . . 1 . . . . . . . 2 . . . . . . . . . Duelist 8 | . . . . . . . . . . . . . . . . 1 2 . 2 . . . . 2 . . . . . . 1 . . Researcher 5 | . . . . . . . . . . . . . . . . . . . . . . . . . . . . . . . 5 . . Sentry 24 | . . . 8 . . . . 2 2 . 1 . . . . . . . 1 1 . . 1 2 . . . . 1 . 4 . 1 Hunter 13 | . . . . . . 1 . . . . 1 . . 1 . . 3 . 2 . . . . . . . 2 2 . . . 1 . Programmer 19 | . . . . . . . . . 1 . . . . 1 2 . 1 . . . . . . . . 3 . 8 . . 3 . . Behemoth 1 | . . . . . . . . . . . 1 . . . . . . . . . . . . . . . . . . . . . . Compactor 6 | . . . . . . . . . . . . . . . . . . . . . 6 . . . . . . . . . . . . Cetus Guard 4 | . . . . . . . . . . . . 4 . . . . . . . . . . . . . . . . . . . . . S7 Guard 1 | . . . . . . . . . . . . . . . . . . . . . . . . . . . . . . . 1 . . Tracker 1 | . . . . . . . . . . . . . . . . . . . . . . . . . . . . . . . . 1 . Striker 1 | . . . . . . . . . . . . . . . . . . . . . . . . . . . . . 1 . . . . Fortress 1 | . . . . . . . . . . . . . . . . . . . . . . . . . . . . . . 1 . . . Decomposer 3 | . . . . . . . . . . . . . . . . . . . . . . . 1 2 . . . . . . . . . Packrat 2 | . . . . . . . . . . . . . . . . . . . . . . . . 2 . . . . . . . . . Wasp 4 | . . . . . . . . . . . . . . . . . . . . . . . . . . . . . 4 . . . . Martyr 1 | . . . . . . . . . . . . . . . . . . . . . . . . . . . . . 1 . . . . Best Kill Streak 16 | . 1 1 6 3 . 3 . 1 4 . 2 4 . 12 3 8 4 . 5 1 6 5 1 9 3 2 3 3 4 1 16 2 3 Combat Bots Only 9 | . 1 1 5 3 . 3 . 2 2 . 2 4 . 8 2 8 4 . 5 1 6 4 1 9 3 2 2 2 4 1 8 1 3 Max Kills in Single Turn 8 | . 1 1 3 1 . 2 . 1 1 . 1 2 . 8 1 3 4 . 1 1 1 1 1 1 2 2 1 2 2 1 5 2 2 Gunslinging . | . . . . . . . . . . . . . . . . . . . . . . . . . . . . . . . . . . Exploded 4 | . . . 1 . . 2 . . . . . . . 4 . 3 4 . . . . . . . 2 2 1 2 . . 2 1 2 Melee 1 | . . . . . . . . 1 1 . 1 . . . . . 1 . . . . . . 1 . . . 1 . . . . . Uniques/NPCs Destroyed 1 | . . . . . . . . . . . . . . . . . . . . . . . . . . . . . . . . . 1 MAIN.C Shell (-1/Command) Combat | -11 -10 -10 -9 -9 -9 -8 -8 -8 -8 -6 -6 -6 -6 -6 -5 -5 -5 -5 -4 -4 -4 -4 -4 -4 -4 -3 -3 -3 -2 -2 -2 -1 -1 -------- Run | Yrd Mat Min Mat Min Exi Min Mat Sto Rec Fac Ext Cet Arc Hub Fac Upp Upp Zhi Pro Fac Was Fac Upp Upp War Pro Res Tes Res Qua Sec Acc Com Hostile Shots Fired 2600 | . 42 19 191 14 . 50 34 35 13 . 110 19 . 183 42 17 98 . 100 75 . 90 4 205 151 34 87 231 84 38 297 145 192 Missed 858 | . 8 3 42 1 . 19 14 8 4 . 36 5 . 80 12 5 39 . 41 44 . 37 1 34 42 12 56 77 27 21 94 48 48 Damage Taken 28729 | . 445 169 1778 143 . 533 267 407 136 24 722 342 . 1804 590 216 1159 . 740 601 . 1049 65 4003 2696 519 459 2540 1103 262 2597 1344 2016 Core 4667 | . 123 78 207 . . 42 46 46 14 . 144 . . 114 112 . 71 . 87 47 . 50 . 409 95 50 38 355 151 11 1051 711 615 Absorbed by Shields 2040 | . . . . . . . . . 5 7 117 104 . . . . . . . . . . . . 13 . 47 190 180 93 90 222 972 Reduced by Siege Mode 230 | . . . . . . . . . . . . . . . . . . . . . . . . 230 . . . . . . . . . Redirected to Shielding 171 | . 22 7 7 . . . . . . . . . . . . . . . . . . . . 135 . . . . . . . . . Ignored by Resistances 7093 | . . . . . . . . . . . . . . . . . . . 149 . . . . . . . . 304 68 81 2277 1191 3023 Regen/Repaired (Parts) 6367 | . . . . . . . . . 35 . 393 128 . 598 173 18 . 681 164 51 110 622 50 352 355 288 259 943 823 324 . . . Core Remaining (%) 55 | 100 . 19 . . . 37 . . 80 . . . . 69 . . . . 73 . . . . . . 38 . 69 . . 16 . . Volleys Fired 665 | . 9 8 69 13 . 27 . 3 6 . 11 7 . 6 11 19 17 . 31 3 21 21 1 51 23 19 4 30 59 23 96 25 52 Largest 3 | . 2 2 2 2 . 2 . 2 2 . 2 2 . 2 1 1 1 . 2 2 2 1 1 2 1 1 1 1 2 1 1 1 3 Hottest 400 | . 100 70 100 46 . 66 . 46 67 . 150 100 . 150 60 43 60 . 100 100 100 40 31 89 260 260 43 260 161 130 200 200 400 Shots Fired 893 | . 18 16 127 26 . 50 . 6 11 . 17 12 . 7 11 19 17 . 54 6 24 21 1 61 23 20 4 30 66 23 96 25 102 Gun 473 | . 18 16 107 26 . 42 . 6 6 . 1 6 . 5 11 . 6 . 23 3 21 21 1 10 1 10 . 22 41 7 . . 63 Cannon 352 | . . . 20 . . . . . 5 . 15 . . 2 . . . . 31 3 3 . . 51 12 5 . 4 25 16 96 25 39 Launcher 68 | . . . . . . 8 . . . . 1 6 . . . 19 11 . . . . . . . 10 5 4 4 . . . . . Special . | . . . . . . . . . . . . . . . . . . . . . . . . . . . . . . . . . . Kinetic 337 | . . 8 88 26 . 42 . 6 11 . 1 . . 3 8 . 6 . 23 . . 8 1 51 . . . 1 41 7 4 . 2 Thermal 353 | . 18 8 35 . . . . . . . 3 . . 2 3 . . . 31 6 24 13 . . 10 5 . 7 18 16 92 25 37 Explosive 15 | . . . . . . 8 . . . . 1 . . . . . 6 . . . . . . . . . . . . . . . . Electromagnetic 68 | . . . 4 . . . . . . . 12 12 . 2 . 19 5 . . . . . . 10 . . 4 . . . . . . Slashing 63 | . . . . . . . . . . . . . . . . . . . . . . . . . . . . . . . . . 63 Entropic 57 | . . . . . . . . . . . . . . . . . . . . . . . . . 13 15 . 22 7 . . . . Robot Hit Streak 25 | . 7 6 13 13 . 7 . 2 8 . 6 3 . 4 8 7 4 . 11 11 10 12 5 25 4 5 4 13 11 5 6 . 18 Robot Miss Streak 15 | . 4 1 5 2 . 5 . 2 4 . 2 2 . 3 2 6 4 . 10 7 5 2 . 3 4 1 . 1 3 2 7 8 15 Penetration Max 3 | . . . . . . . . . . . . . . . 1 . . . 2 . . . . 3 . . . . 1 . 2 . 1 Secondary Targets 2 | . 1 . 1 . . . . . . . . . . . . . . . . . . . . . . . . . . . . . . Max Gunslinging Chain 1 | . 1 . 1 . . . . . . . . . . . . . . . . . . . . . . . . . . . . . . Shots Hit Robots 669 | . 11 10 92 21 . 29 . 15 24 1 28 7 1 3 15 24 17 5 44 6 24 24 2 63 8 12 3 50 34 8 25 . 63 Core Hits 478 | . 7 6 38 9 . 16 . 3 16 . 12 12 1 22 20 18 17 . 57 7 17 23 1 45 8 5 3 22 17 5 44 6 21 Critical Kills 21 | . . . 1 . . . . . . . 1 . . 1 . . . . 2 . . . . 3 . . . . 6 1 6 . . Critical Parts Destroyed 36 | . . . . . . . . 1 . . . . . . 1 1 1 2 2 1 . 1 1 5 . . 1 . 7 . 11 . 1 Critical Strikes 69 | . 1 . 2 . . . . 1 . . 2 . . 1 1 1 2 2 4 1 . 1 1 10 3 1 1 2 13 1 17 . 1 Burn 1 | . 1 . . . . . . . . . . . . . . . . . . . . . . . . . . . . . . . . Meltdown 3 | . . . 1 . . . . . . . . . . 1 . . . . . . . . . . . . . . . . 1 . . Destroy 41 | . . . . . . . . . . . . . . . . . . . 4 1 . . . 5 . . . . 13 1 16 . 1 Blast 1 | . . . . . . . . . . . . . . . . . . . . . . . . 1 . . . . . . . . . Corrupt 3 | . . . 1 . . . . . . . 1 . . . . . . . . . . . . 1 . . . . . . . . . Smash 14 | . . . . . . . . 1 . . 1 . . . 1 1 2 2 . . . 1 1 3 . . 1 . . . . . . Sever 1 | . . . . . . . . . . . . . . . . . . . . . . . . . . . . 1 . . . . . Impale 1 | . . . . . . . . . . . . . . . . . . . . . . . . . . . . 1 . . . . . Sunder 4 | . . . . . . . . . . . . . . . . . . . . . . . . . 3 1 . . . . . . . Melee Attacks 280 | . . . . . . . . 17 17 1 55 . 1 15 36 14 7 5 . . . 9 1 11 . . 10 63 14 4 . . . Kinetic 2 | . . . . . . . . . . . . . . . . . . . . . . . . . . . . . . 2 . . . Impact 156 | . . . . . . . . 17 2 . 47 . . . 36 14 7 5 . . . 9 1 11 . . 7 . . . . . . Slashing 73 | . . . . . . . . . 15 1 8 . 1 15 . . . . . . . . . . . . . 30 3 . . . . Piercing 49 | . . . . . . . . . . . . . . . . . . . . . . . . . . . 3 33 11 2 . . . Sneak Attacks 32 | . . . . . . . . 1 9 1 5 . . 1 4 . . . . . . . . 4 . . 1 6 . . . . . Combat Hostiles 2 | . . . . . . . . . . . . . . . . . . . . . . . . 2 . . . . . . . . . Follow-up Attacks . | . . . . . . . . . . . . . . . . . . . . . . . . . . . . . . . . . . Damage Inflicted 36863 | . 141 124 1662 339 . 899 5 594 1225 64 1029 810 113 1454 868 1878 1073 343 1115 139 771 685 60 2893 812 952 368 3043 1294 284 4833 627 6366 Guns 9782 | . 137 124 1180 339 . 394 . 26 67 . 12 76 . 33 346 . 103 . 265 63 686 539 13 306 . 354 . 968 517 64 . . 3170 Cannons 10138 | . . . 279 . . . . . 111 . 278 . . . . . . . 850 76 85 . . 2008 190 202 . 293 777 188 2492 86 2223 Explosions 9605 | . . . 202 . . 481 . . . . . 734 . 1300 78 931 735 . . . . . . . 604 396 224 374 . . 2236 351 959 Melee 6850 | . . . . . . . . 568 1041 64 702 . 113 112 400 947 204 343 . . . 146 47 579 . . 144 1408 . 32 . . . Ramming 488 | . 4 . 1 . . 24 5 . 6 . 37 . . 9 44 . 31 . . . . . . . 18 . . . . . 105 190 14 Kinetic 5655 | . . 98 996 339 . 394 . 26 178 . 12 . . . 292 . 103 . 265 . . 175 13 1987 . . . . 517 96 150 . 14 Thermal 14096 | . 137 26 609 . . . . . . . 55 247 . 33 54 37 135 . 850 139 771 364 . . 604 396 . 667 601 188 4578 437 3168 Explosive 909 | . . . . . . 481 . . . . . . . . . . 428 . . . . . . . . . . . . . . . . Electromagnetic 3837 | . . . 56 . . . . . . . 223 563 . 1300 78 894 172 . . . . . . 327 . . 224 . . . . . . Impact 3990 | . . . . . . . . 568 210 . 402 . . . 400 947 204 343 . . . 146 47 579 . . 144 . . . . . . Slashing 5365 | . . . . . . . . . 831 64 300 . 113 112 . . . . . . . . . . . . . 775 . . . . 3170 Piercing 633 | . . . . . . . . . . . . . . . . . . . . . . . . . . . . 633 . . . . . Entropic 1890 | . . . . . . . . . . . . . . . . . . . . . . . . . 190 556 . 968 176 . . . . Highest Corruption 8 | . . . . . . . . . 1 . . . . . 1 1 . . . . 6 6 . . . 5 . 1 . . 8 . . Average Corruption 2 | . . . . . . . . . 1 . . . . . 1 1 . . . . 6 2 . . . 2 . 1 . . 7 . . Corruption Purged 7 | . . . . . . . . . . . . . . . . 1 . . . . . 6 . . . . . . . . . . . Corruption Blocked 40 | . . . . . . . . . . . . . . . . . . . . . . . . . . . . 14 26 . . . . Effects 43 | . . . . . . . . . 9 . . . . . . . . . . . 2 1 . . . 10 . . . . 21 . . Message Errors 8 | . . . . . . . . . 1 . . . . . . . . . . . 2 . . . . 2 . . . . 3 . . Matter Fused 12 | . . . . . . . . . 1 . . . . . . . . . . . . 1 . . . 3 . . . . 7 . . Heat Flow Errors 5 | . . . . . . . . . 1 . . . . . . . . . . . . . . . . 2 . . . . 2 . . Energy Discharges 6 | . . . . . . . . . 3 . . . . . . . . . . . . . . . . . . . . . 3 . . Parts Rejected 2 | . . . . . . . . . . . . . . . . . . . . . . . . . . . . . . . 2 . . Data Loss (minor) 4 | . . . . . . . . . 2 . . . . . . . . . . . . . . . . 2 . . . . . . . Data Loss (major) 1 | . . . . . . . . . . . . . . . . . . . . . . . . . . . . . . . 1 . . Misfires 2 | . . . . . . . . . . . . . . . . . . . . . . . . . . 1 . . . . 1 . . Alerts 2 | . . . . . . . . . 1 . . . . . . . . . . . . . . . . . . . . . 1 . . Weapon Failures 1 | . . . . . . . . . . . . . . . . . . . . . . . . . . . . . . . 1 . . Overload Shots . | . . . . . . . . . . . . . . . . . . . . . . . . . . . . . . . . . . Overflow Damage 3869 | . . . 68 . . 61 . 87 270 4 19 9 . 81 335 841 60 227 . . . 80 47 449 38 34 94 212 88 . 676 78 11 Projectiles 819 | . . . . . . . . . . . . . . . . . . . . . . . . 94 6 26 . . 88 . 549 56 . Explosions 339 | . . . 68 . . 61 . . . . . 9 . 4 . 16 3 . . . . . . . 32 8 . . . . 127 . 11 Melee 2711 | . . . . . . . . 87 270 4 19 . . 77 335 825 57 227 . . . 80 47 355 . . 94 212 . . . 22 . Knockbacks 59 | . . . . . . . . . 4 . 2 . . . 4 . 3 . . . . 2 . 29 . . 1 . . . 13 1 . Impact 18 | . . . . . . . . . . . 2 . . . 4 . 3 . . . . 2 . 3 . . 1 . . . 2 1 . Kinetic 36 | . . . . . . . . . 4 . . . . . . . . . . . . . . 22 . . . . . . 10 . . Secondary 5 | . . . . . . . . . . . . . . . . . . . . . . . . 4 . . . . . . 1 . . Self-Inflicted Damage 629 | . . . 67 . . 117 . . . . . . . 134 29 . 25 . . . . . . . . . . . . . 123 60 74 Shots 14 | . . . 1 . . 3 . . . . . . . 2 1 . 1 . . . . . . . . . . . . . 3 1 2 Rammed 12 | . . . 1 . . 3 1 . 1 . . . . 1 2 . 1 . . . . . . . 2 . . . . . . . . Targets Rammed 35 | . 2 1 1 . . 3 1 . 2 . 2 . . 1 2 . 1 . . . . . . . 2 . . . . . 7 7 3 Kicked 23 | . 2 1 . . . . . . 1 . 2 . . . . . . . . . . . . . . . . . . . 7 7 3 Crushed . | . . . . . . . . . . . . . . . . . . . . . . . . . . . . . . . . . . Highest Temperature 391 | . 234 81 367 66 . 139 . 11 231 . 262 62 . 117 27 2 . . . 21 . 11 . 47 200 364 . 391 72 . 166 . 76 Average Temperature 82 | . 83 29 113 25 . 46 . 9 64 . 93 21 . 42 15 2 . . . 14 . 8 . 19 132 161 . 139 24 . 40 . 33 Received Heat Transfer 4841 | . 222 57 690 60 . 99 99 243 27 21 179 34 . 369 63 72 54 . 30 126 . 205 21 747 397 . 36 165 106 21 498 64 136 Effects 8 | . . . 5 . . . . . . . . . . . . . . . . . . . . . . 3 . . . . . . . Interference 6 | . . . 3 . . . . . . . . . . . . . . . . . . . . . . 3 . . . . . . . Short Circuit 1 | . . . 1 . . . . . . . . . . . . . . . . . . . . . . . . . . . . . . Damage (minor) 1 | . . . 1 . . . . . . . . . . . . . . . . . . . . . . . . . . . . . . Siege Activations 4 | . . . . . . . . . . . . . . . . . . . . . . . . 4 . . . . . . . . . Total Turns 69 | . . . . . . . . . . . . . . . . . . . . . . . . 69 . . . . . . . . . Longest Duration 40 | . . . . . . . . . . . . . . . . . . . . . . . . 40 . . . . . . . . . Robots Corrupted 13 | . . . . . . . . . . . 1 4 . 3 . 4 . . . . . . . . . . 1 . . . . . . Combat Hostiles 13 | . . . . . . . . . . . 1 4 . 3 . 4 . . . . . . . . . . 1 . . . . . . Parts Fried 50 | . . . . . . . . 1 3 . . 3 . 10 7 10 2 1 . . . 2 1 7 . . 3 . . . . . . Impact Corruptions 79 | . . . . . . 1 . 3 4 . 3 . . . 10 36 2 4 . . . 2 1 8 . . 3 . . . . 2 . Robots Melted 19 | . . . 1 . . . . . . . 1 . . 1 1 . . . 4 1 6 3 . . . . . . . . 1 . . Combat Hostiles 18 | . . . 1 . . . . . . . 1 . . 1 . . . . 4 1 6 3 . . . . . . . . 1 . . Parts Melted 59 | . 1 . 1 . . . . . . . 9 . . 4 . . . . 18 2 8 6 . . 2 2 . 1 . . 3 1 1 Heat Transferred 19795 | . 481 74 1162 . . . . . . . 250 150 . 250 500 100 . . 3478 666 3959 1924 . . 680 480 . 580 300 100 3226 450 985 Parts Sabotaged . | . . . . . . . . . . . . . . . . . . . . . . . . . . . . . . . . . . Parts Stolen . | . . . . . . . . . . . . . . . . . . . . . . . . . . . . . . . . . . Parts Stripped 18 | . . . . . . . . . . . . . . . . . . . . . . . . . . . . . . 18 . . . Power Chain Reactions 6 | . . . . . . . . . . . . 1 . . . 3 2 . . . . . . . . . . . . . . . . Alert | -11 -10 -10 -9 -9 -9 -8 -8 -8 -8 -6 -6 -6 -6 -6 -5 -5 -5 -5 -4 -4 -4 -4 -4 -4 -4 -3 -3 -3 -2 -2 -2 -1 -1 ------- Run | Yrd Mat Min Mat Min Exi Min Mat Sto Rec Fac Ext Cet Arc Hub Fac Upp Upp Zhi Pro Fac Was Fac Upp Upp War Pro Res Tes Res Qua Sec Acc Com Peak Influence 2165 | . 70 78 351 221 . 118 42 113 142 496 461 318 52 569 333 . . . . 220 59 365 . . . . 148 368 293 342 2165 2148 1658 Initial 1384 | . . 23 1 136 . . 13 4 31 496 168 257 47 16 278 . . . . 170 59 41 . . . . 27 60 117 33 168 1298 1384 Average 207 | . 34 23 210 128 . 24 22 50 81 436 309 280 43 103 238 . . . . 165 59 180 . . . . 68 175 114 169 428 1642 1538 Maximum Alert Level 5 | . . . 1 1 . . . . . 2 2 1 . 2 1 . . . . 1 . 1 . . . . . 1 1 1 5 5 5 Low Security (%) 65 | 100 100 100 39 76 . 100 100 100 100 . 17 4 100 93 33 . . . . 93 100 50 . . . . 100 69 74 64 63 . . Level 1 25 | . . . 60 23 . . . . . 25 58 95 . . 66 . . . . 6 . 49 . . . . . 30 25 35 20 . . Level 2 5 | . . . . . . . . . . 74 23 . . 6 . . . . . . . . . . . . . . . . . . . Level 3 . | . . . . . . . . . . . . . . . . . . . . . . . . . . . . . . . . . . Level 4 1 | . . . . . . . . . . . . . . . . . . . . . . . . . . . . . . . . 14 58 Level 5 . | . . . . . . . . . . . . . . . . . . . . . . . . . . . . . . . . . 39 High Security . | . . . . . . . . . . . . . . . . . . . . . . . . . . . . . . . . . 1 Max Security 2 | . . . . . . . . . . . . . . . . . . . . . . . . . . . . . . . 16 85 . Squads Dispatched 90 | . 1 . 3 . . . . 2 . . 3 . . 3 3 . 1 . 1 3 . 4 . 1 . . 5 5 3 1 22 28 1 Investigation 14 | . . . 2 . . . . 2 . . 2 . . 1 . . . . . 1 . 1 . . . . 3 . 1 . . 1 . Extermination 10 | . . . . . . . . . . . . . . . 1 . . . . 1 . 1 . . . . . 4 . 1 2 . . Reinforcement 24 | . 1 . 1 . . . . . . . 1 . . 2 2 . . . . 1 . 2 . . . . 2 1 2 . 4 4 1 Assault 35 | . . . . . . . . . . . . . . . . . 1 . 1 . . . . 1 . . . . . . 12 20 . Garrison 1 | . . . . . . . . . . . . . . . . . . . . . . . . . . . . . . . 1 . . Intercept 6 | . . . . . . . . . . . . . . . . . . . . . . . . . . . . . . . 3 3 . Searches Triggered 1 | . . . . . . . . . . 1 . . . . . . . . . . . . . . . . . . . . . . . Construction Impeded 3 | . . . 1 . . . . . . . . . . . 1 . . . . . . . . . . . . . . . 1 . . Haulers Reinforced 1 | . . . . . . . . . . . . . . . . . . . . . . . . . . . . . . . . 1 . Active Scanning Responses . | . . . . . . . . . . . . . . . . . . . . . . . . . . . . . . . . . . Cargo Convoy Interrupts . | . . . . . . . . . . . . . . . . . . . . . . . . . . . . . . . . . . Stealth | -11 -10 -10 -9 -9 -9 -8 -8 -8 -8 -6 -6 -6 -6 -6 -5 -5 -5 -5 -4 -4 -4 -4 -4 -4 -4 -3 -3 -3 -2 -2 -2 -1 -1 --------- Run | Yrd Mat Min Mat Min Exi Min Mat Sto Rec Fac Ext Cet Arc Hub Fac Upp Upp Zhi Pro Fac Was Fac Upp Upp War Pro Res Tes Res Qua Sec Acc Com Distress Signals 32 | . . . 7 . . . 1 . 1 1 2 2 . 3 1 . . . . . . 2 . . 1 . 3 . 4 . 1 3 . Communications Jammed 33 | . . . . . . . . . . . . . . . 14 . 7 . 2 . . 4 . . . . . 1 . . 5 . . Distress Signals 23 | . . . . . . . . . . . . . . . 14 . . . . . . 4 . . . . . . . . 5 . . Times Spotted 695 | . 12 6 35 6 . 7 10 6 8 5 28 10 7 33 35 13 19 . 32 31 6 29 3 23 56 3 12 24 25 19 109 63 20 Peak Tracking Total 71 | . 5 3 7 3 . 3 9 3 2 3 4 5 7 15 8 4 7 . 8 21 4 16 2 12 11 2 7 6 6 8 71 39 14 Tactical Retreats 87 | . . . 2 . . . . . . . 1 . 1 9 11 1 5 . 7 3 . 8 . 6 7 . 1 2 4 6 2 11 . Traps | -11 -10 -10 -9 -9 -9 -8 -8 -8 -8 -6 -6 -6 -6 -6 -5 -5 -5 -5 -4 -4 -4 -4 -4 -4 -4 -3 -3 -3 -2 -2 -2 -1 -1 ------- Run | Yrd Mat Min Mat Min Exi Min Mat Sto Rec Fac Ext Cet Arc Hub Fac Upp Upp Zhi Pro Fac Was Fac Upp Upp War Pro Res Tes Res Qua Sec Acc Com Traps Triggered 14 | . 1 . . . . . . . . . 3 . . . 1 . . . . 1 . 1 . . . . . 1 . . 2 4 . Indirectly . | . . . . . . . . . . . . . . . . . . . . . . . . . . . . . . . . . . Trap Hack Attempts . | . . . . . . . . . . . . . . . . . . . . . . . . . . . . . . . . . . Triggered . | . . . . . . . . . . . . . . . . . . . . . . . . . . . . . . . . . . Disarmed . | . . . . . . . . . . . . . . . . . . . . . . . . . . . . . . . . . . Reprogrammed . | . . . . . . . . . . . . . . . . . . . . . . . . . . . . . . . . . . Reused . | . . . . . . . . . . . . . . . . . . . . . . . . . . . . . . . . . . Traps Extracted . | . . . . . . . . . . . . . . . . . . . . . . . . . . . . . . . . . . Installed . | . . . . . . . . . . . . . . . . . . . . . . . . . . . . . . . . . . Triggered 22 | . . . . . . . . . . . . . . . . . . . . . . . . 3 19 . . . . . . . . Time Bombs Activated 1 | . . . . . . . . . . . . . . . . . . . . . . . . . 1 . . . . . . . . Exploded 1 | . . . . . . . . . . . . . . . . . . . . . . . . . 1 . . . . . . . . Machines | -11 -10 -10 -9 -9 -9 -8 -8 -8 -8 -6 -6 -6 -6 -6 -5 -5 -5 -5 -4 -4 -4 -4 -4 -4 -4 -3 -3 -3 -2 -2 -2 -1 -1 ---------- Run | Yrd Mat Min Mat Min Exi Min Mat Sto Rec Fac Ext Cet Arc Hub Fac Upp Upp Zhi Pro Fac Was Fac Upp Upp War Pro Res Tes Res Qua Sec Acc Com Machines Disabled 44 | . . . 2 1 . 2 . 1 . . 2 . 1 7 1 1 . . . . . . . . 2 . . 9 . 2 8 3 2 Max in Single Turn 6 | . . . 2 1 . 1 . 1 . . . . . 6 1 1 . . . . . . . . 1 . . 1 . 1 1 1 1 Garrison Access 1 | . . . . . . . . . . . . . . . . . . . . . . . . . . . . 1 . . . . . Network Hub 2 | . . . . . . . . . . . . . . 2 . . . . . . . . . . . . . . . . . . . Machines Repaired . | . . . . . . . . . . . . . . . . . . . . . . . . . . . . . . . . . . Machines Dismantled . | . . . . . . . . . . . . . . . . . . . . . . . . . . . . . . . . . . Machines Sabotaged . | . . . . . . . . . . . . . . . . . . . . . . . . . . . . . . . . . . Overloaded Fab Kills . | . . . . . . . . . . . . . . . . . . . . . . . . . . . . . . . . . . Hacking | -11 -10 -10 -9 -9 -9 -8 -8 -8 -8 -6 -6 -6 -6 -6 -5 -5 -5 -5 -4 -4 -4 -4 -4 -4 -4 -3 -3 -3 -2 -2 -2 -1 -1 --------- Run | Yrd Mat Min Mat Min Exi Min Mat Sto Rec Fac Ext Cet Arc Hub Fac Upp Upp Zhi Pro Fac Was Fac Upp Upp War Pro Res Tes Res Qua Sec Acc Com Machines Accessed 111 | . 3 1 6 . . . 2 7 13 2 17 2 1 7 3 1 . 8 . 2 . 5 2 1 1 1 4 8 2 7 4 1 . Terminals 78 | . 3 1 5 . . . 2 5 6 2 17 2 . 7 2 . . . . 2 . 2 . . . 1 3 6 1 6 4 1 . Fabricators 3 | . . . . . . . . . . . . . . . 1 . . . . . . 1 . . . . . . 1 . . . . Repair Stations . | . . . . . . . . . . . . . . . . . . . . . . . . . . . . . . . . . . Recycling Units 10 | . . . . . . . . 2 7 . . . . . . . . . . . . . . . . . 1 . . . . . . Scanalyzers 5 | . . . 1 . . . . . . . . . . . . . . . . . . 2 . . . . . 1 . 1 . . . Garrison Access 1 | . . . . . . . . . . . . . . . . . . . . . . . . . . . . 1 . . . . . Total Hacks 423 | . 8 5 15 . . . 5 19 33 4 32 3 25 28 11 1 . 47 . 20 . 48 8 1 1 1 16 50 7 20 13 2 . Successful 221 | . 1 1 4 . . . 2 14 13 . 9 . 25 10 4 1 . 47 . 11 . 19 8 1 1 1 5 26 3 8 7 . . Failed 201 | . 7 4 11 . . . 3 5 19 4 23 3 . 18 7 . . . . 9 . 29 . . . . 11 24 4 12 6 2 . Catastrophic 45 | . 3 1 2 . . . . 1 3 1 5 . . 1 1 . . . . 1 . 2 . . . . 6 9 . 5 2 2 . Database Lockouts 1 | . . . . . . . . . 1 . . . . . . . . . . . . . . . . . . . . . . . . Manual 146 | . 6 4 2 . . . 5 9 19 4 3 . . 20 6 . . . . 12 . 6 . . . . 7 20 5 7 11 . . Terminals 267 | . 8 5 12 . . . 5 14 17 4 32 3 . 28 10 . . . . 20 . 16 . . . 1 14 39 5 19 13 2 . Fabricators 5 | . . . . . . . . . . . . . . . 1 . . . . . . 2 . . . . . . 2 . . . . Repair Stations . | . . . . . . . . . . . . . . . . . . . . . . . . . . . . . . . . . . Recycling Units 23 | . . . . . . . . 5 16 . . . . . . . . . . . . . . . . . 2 . . . . . . Scanalyzers 42 | . . . 3 . . . . . . . . . . . . . . . . . . 30 . . . . . 8 . 1 . . . Garrison Access 3 | . . . . . . . . . . . . . . . . . . . . . . . . . . . . 3 . . . . . Terminal Hacks 149 | . 1 1 2 . . . 2 9 2 . 9 . 25 7 1 1 . 47 . 8 . 3 8 1 1 1 3 9 . 3 5 . . Record 71 | . . . . . . . . . . . . . 25 . . 1 . 35 . . . . 7 . . 1 . 2 . . . . . Part Schematic 10 | . . 1 . . . . 1 2 1 . . . . . . . . 4 . 1 . . . . . . . . . . . . . Robot Analysis 8 | . . . . . . . 1 2 1 . . . . . . . . 4 . . . . . . . . . . . . . . . Prototype ID Bank 10 | . . . 1 . . . . 1 . . 1 . . 1 . . . 4 . 1 . . . . . . . 1 . . . . . Open Door 12 | . . . . . . . . 1 . . 7 . . . . . . . . . . . 1 1 1 . . . . . 1 . . Branch Access Points 3 | . . . . . . . . 1 . . . . . . . . . . . 1 . 1 . . . . . . . . . . . Emergency Access Points 2 | . . . . . . . . . . . . . . 1 . . . . . . . . . . . . . 1 . . . . . Machine Index 1 | . . . . . . . . . . . . . . . . . . . . 1 . . . . . . . . . . . . . Terminal Index 1 | . . . . . . . . . . . . . . 1 . . . . . . . . . . . . . . . . . . . Alert Level 6 | . . . . . . . . . . . . . . 1 . . . . . 1 . 1 . . . . 1 2 . . . . . Unreport Threat 6 | . . . . . . . . . . . 1 . . . . . . . . 1 . . . . . . 1 1 . . 2 . . Locate Traps 3 | . . . . . . . . 1 . . . . . . . . . . . 1 . . . . . . . . . 1 . . . Zone Layout 15 | . 1 . 1 . . . . 1 . . . . . 3 1 . . . . 1 . 1 . . . . 1 2 . 2 1 . . Activate Exoskeleton 1 | . . . . . . . . . . . . . . . . . . . . . . . . . . . . . . . 1 . . Fabricator Hacks 5 | . . . . . . . . . . . . . . . 1 . . . . . . 2 . . . . . . 2 . . . . Load Schematic 2 | . . . . . . . . . . . . . . . . . . . . . . 1 . . . . . . 1 . . . . Build 3 | . . . . . . . . . . . . . . . 1 . . . . . . 1 . . . . . . 1 . . . . Repair Station Hacks . | . . . . . . . . . . . . . . . . . . . . . . . . . . . . . . . . . . Recycling Unit Hacks 6 | . . . . . . . . 1 4 . . . . . . . . . . . . . . . . . 1 . . . . . . Retrieve Components 6 | . . . . . . . . 1 4 . . . . . . . . . . . . . . . . . 1 . . . . . . Scanalyzer 24 | . . . 2 . . . . . . . . . . . . . . . . . . 13 . . . . . 8 . 1 . . . Insert Component 17 | . . . 1 . . . . . . . . . . . . . . . . . . 9 . . . . . 6 . 1 . . . Analyze 7 | . . . 1 . . . . . . . . . . . . . . . . . . 4 . . . . . 2 . . . . . Garrison Access Hacks 1 | . . . . . . . . . . . . . . . . . . . . . . . . . . . . 1 . . . . . Seal Access 1 | . . . . . . . . . . . . . . . . . . . . . . . . . . . . 1 . . . . . Unauthorized Hacks 36 | . . . . . . . . 4 7 . . . . 3 2 . . . . 3 . 1 . . . . 1 8 1 4 2 . . Terminals 27 | . . . . . . . . 2 . . . . . 3 2 . . . . 3 . 1 . . . . 1 8 1 4 2 . . Track 8 | . . . . . . . . . . . . . . . . . . . . 1 . . . . . . . 4 . 2 1 . . Assimilate 3 | . . . . . . . . 1 . . . . . . . . . . . . . 1 . . . . 1 . . . . . . Botnet 11 | . . . . . . . . 1 . . . . . 1 2 . . . . 1 . . . . . . . 3 1 1 1 . . Disrupt 4 | . . . . . . . . . . . . . . 1 . . . . . 1 . . . . . . . 1 . 1 . . . Sabotage 1 | . . . . . . . . . . . . . . 1 . . . . . . . . . . . . . . . . . . . Fabricators . | . . . . . . . . . . . . . . . . . . . . . . . . . . . . . . . . . . Repair Stations . | . . . . . . . . . . . . . . . . . . . . . . . . . . . . . . . . . . Recycling Units 9 | . . . . . . . . 2 7 . . . . . . . . . . . . . . . . . . . . . . . . Tunnel 9 | . . . . . . . . 2 7 . . . . . . . . . . . . . . . . . . . . . . . . Scanalyzers . | . . . . . . . . . . . . . . . . . . . . . . . . . . . . . . . . . . Garrison Access . | . . . . . . . . . . . . . . . . . . . . . . . . . . . . . . . . . . Data Cores Recovered 3 | . . . . . . . . . . . . . . . . . . . . . . . . . . . . . . 2 1 . . Used 2 | . . . . . . . . . . . . . . . . . . . . . . . . . . . . . . 1 1 . . Hacking Detections 80 | . 3 1 6 . . . 2 6 9 2 13 2 . 7 2 . . . . 2 . 5 . . . . 3 7 2 6 1 1 . Full Trace Events 12 | . . 1 2 . . . . . 2 . 2 . . . . . . . . 1 . 1 . . . . 1 . 1 . . 1 . Feedback Events . | . . . . . . . . . . . . . . . . . . . . . . . . . . . . . . . . . . Feedback Blocked . | . . . . . . . . . . . . . . . . . . . . . . . . . . . . . . . . . . Robot Schematics Acquired . | . . . . . . . . . . . . . . . . . . . . . . . . . . . . . . . . . . Robots Built . | . . . . . . . . . . . . . . . . . . . . . . . . . . . . . . . . . . Authchips . | . . . . . . . . . . . . . . . . . . . . . . . . . . . . . . . . . . Time . | . . . . . . . . . . . . . . . . . . . . . . . . . . . . . . . . . . Total Robot Build Rating . | . . . . . . . . . . . . . . . . . . . . . . . . . . . . . . . . . . Part Schematics Acquired 16 | . . 1 1 . . . 1 2 1 . . . . . . . . 4 . 1 . 4 . . . . . 1 . . . . . Parts Built 2 | . . . . . . . . . . . . . . . 1 . . . . . . . . . . . . . 1 . . . . Authchips . | . . . . . . . . . . . . . . . . . . . . . . . . . . . . . . . . . . Time 228 | . . . . . . . . . . . . . . . 53 . . . . . . 117 . . . . . . 58 . . . . Total Part Build Rating 13 | . . . . . . . . . . . . . . . 6 . . . . . . . . . . . . . 7 . . . . Parts Repaired . | . . . . . . . . . . . . . . . . . . . . . . . . . . . . . . . . . . Time . | . . . . . . . . . . . . . . . . . . . . . . . . . . . . . . . . . . Parts Recycled . | . . . . . . . . . . . . . . . . . . . . . . . . . . . . . . . . . . Recycled Matter . | . . . . . . . . . . . . . . . . . . . . . . . . . . . . . . . . . . Retrieved Matter . | . . . . . . . . . . . . . . . . . . . . . . . . . . . . . . . . . . Retrieved Components 28 | . . . . . . . . 5 20 . . . . . . . . . . . . . . . . . 3 . . . . . . Parts Scanalyzed 7 | . . . 1 . . . . . . . . . . . . . . . . . . 5 . . . . . 1 . . . . . Part Schematics Acquired 6 | . . . 1 . . . . . . . . . . . . . . . . . . 4 . . . . . 1 . . . . . Parts Damaged . | . . . . . . . . . . . . . . . . . . . . . . . . . . . . . . . . . . Bothacking | -11 -10 -10 -9 -9 -9 -8 -8 -8 -8 -6 -6 -6 -6 -6 -5 -5 -5 -5 -4 -4 -4 -4 -4 -4 -4 -3 -3 -3 -2 -2 -2 -1 -1 ------------ Run | Yrd Mat Min Mat Min Exi Min Mat Sto Rec Fac Ext Cet Arc Hub Fac Upp Upp Zhi Pro Fac Was Fac Upp Upp War Pro Res Tes Res Qua Sec Acc Com Used RIF Installer . | . . . . . . . . . . . . . . . . . . . . . . . . . . . . . . . . . . Robots Hacked . | . . . . . . . . . . . . . . . . . . . . . . . . . . . . . . . . . . Non-combat . | . . . . . . . . . . . . . . . . . . . . . . . . . . . . . . . . . . Combat . | . . . . . . . . . . . . . . . . . . . . . . . . . . . . . . . . . . Robot Hacks Applied . | . . . . . . . . . . . . . . . . . . . . . . . . . . . . . . . . . . Relay Couplers Released 3 | . . . . . . . . . . . . . . 3 . . . . . . . . . . . . . . . . . . . Programmers 3 | . . . . . . . . . . . . . . 3 . . . . . . . . . . . . . . . . . . . Fabnet Peak Effective % . | . . . . . . . . . . . . . . . . . . . . . . . . . . . . . . . . . . Robots Rewired 31 | . . . . . . . . . 21 . 4 . . . . . . . . . . . . 1 5 . . . . . . . . Allies Hacked . | . . . . . . . . . . . . . . . . . . . . . . . . . . . . . . . . . . Hacks Repelled . | . . . . . . . . . . . . . . . . . . . . . . . . . . . . . . . . . . Allies | -11 -10 -10 -9 -9 -9 -8 -8 -8 -8 -6 -6 -6 -6 -6 -5 -5 -5 -5 -4 -4 -4 -4 -4 -4 -4 -3 -3 -3 -2 -2 -2 -1 -1 -------- Run | Yrd Mat Min Mat Min Exi Min Mat Sto Rec Fac Ext Cet Arc Hub Fac Upp Upp Zhi Pro Fac Was Fac Upp Upp War Pro Res Tes Res Qua Sec Acc Com Total Allies 107 | . . . . 1 . . . 1 21 . 23 . . . . . . . . . . 1 . 1 5 . 1 . . . . 47 6 Largest Group 20 | . . . . 1 1 . . 1 20 19 18 14 4 1 . . . . . . . 1 . 1 5 . 1 . . . . 19 . Highest-Rated Group 490 | . . . . 31 31 . . 10 324 319 490 327 96 7 . . . . . . . 10 . 30 266 . 10 . . . . 274 . Highest-Rated Ally 159 | . . . . 31 31 . . 10 34 34 159 39 31 7 . . . . . . . 10 . 30 65 . 10 . . . . 15 . Total Orders 12 | . . . . . . . . . . . . . . . . . . . . . . . . . . . . 4 8 . . . . STAY 1 | . . . . . . . . . . . . . . . . . . . . . . . . . . . . . 1 . . . . EXPLORE 5 | . . . . . . . . . . . . . . . . . . . . . . . . . . . . 1 4 . . . . RETURN 6 | . . . . . . . . . . . . . . . . . . . . . . . . . . . . 3 3 . . . . Ally Attacks 412 | . . . . . . . . . 22 45 170 55 6 . . . . . . . . . . 5 16 . . . . . . 93 . Total Damage 8823 | . . . . . . . . . 435 794 3860 1104 42 . . . . . . . . . . 133 755 . . . . . . 1700 . Kills 47 | . . . . . . . . . 5 7 22 5 . . . . . . . . . . . . 1 . . . . . . 7 . Allies Corrupted 5 | . . . . . . . . . . . 4 . . . . . . . . . . . . 1 . . . . . . . . . Allies Melted . | . . . . . . . . . . . . . . . . . . . . . . . . . . . . . . . . . . Intel | -11 -10 -10 -9 -9 -9 -8 -8 -8 -8 -6 -6 -6 -6 -6 -5 -5 -5 -5 -4 -4 -4 -4 -4 -4 -4 -3 -3 -3 -2 -2 -2 -1 -1 ------- Run | Yrd Mat Min Mat Min Exi Min Mat Sto Rec Fac Ext Cet Arc Hub Fac Upp Upp Zhi Pro Fac Was Fac Upp Upp War Pro Res Tes Res Qua Sec Acc Com Robot Analysis Total 8 | . . . . . . . 1 2 1 . . . . . . . . 4 . . . . . . . . . . . . . . . Derelict Logs Recovered 15 | . . 1 . 2 . . . . . . . . . . . 3 2 . 2 . . . 2 3 . . . . . . . . . Drone Launches 11 | . . . . . . . . . . . . . . . . . . . . . . . . . . . . 3 8 . . . . Drone Recoveries 10 | . . . . . . . . . . . . . . . . . . . . . . . . . . . . 3 7 . . . . Exploration | -11 -10 -10 -9 -9 -9 -8 -8 -8 -8 -6 -6 -6 -6 -6 -5 -5 -5 -5 -4 -4 -4 -4 -4 -4 -4 -3 -3 -3 -2 -2 -2 -1 -1 ------------- Run | Yrd Mat Min Mat Min Exi Min Mat Sto Rec Fac Ext Cet Arc Hub Fac Upp Upp Zhi Pro Fac Was Fac Upp Upp War Pro Res Tes Res Qua Sec Acc Com Turns Passed 33766 | 75 280 969 1055 876 808 1618 191 546 1775 513 1913 421 79 492 963 1028 1072 641 2282 251 106 676 1459 3824 1560 3981 353 981 1191 563 654 329 241 Spaces Moved 20327 | 41 197 489 444 524 390 626 81 214 638 349 615 181 73 425 976 1299 1240 270 1426 278 100 814 1007 1163 767 695 482 1028 896 721 833 914 131 Core 55 | 24 . . . . . . . . . . 19 . . . . . . . . . . . . 12 . . . . . . . . . Treads 6518 | . . 39 410 524 390 626 81 . 81 315 43 2 73 342 183 1299 1240 143 . . . . 441 170 83 16 . . 17 . . . . Legs 5219 | 17 197 450 . . . . . 214 412 . 517 179 . . . . . . . . . 48 . 303 522 . . . 500 414 633 698 115 Wheels 349 | . . . 34 . . . . . 145 34 36 . . . . . . . . . . . 1 99 . . . . . . . . . Hover 2248 | . . . . . . . . . . . . . . . . . . 2 . . 15 649 . 579 . . . 714 289 . . . . Flight 5506 | . . . . . . . . . . . . . . 83 793 . . 125 1426 278 85 117 565 . 162 679 482 314 90 307 . . . Fastest Speed 30 | 50 120 160 110 160 160 240 160 120 132 132 160 101 101 94 58 58 58 50 41 30 41 43 52 118 93 75 45 45 45 40 30 30 30 Average Speed 111 | 144 120 187 161 160 206 240 231 203 234 138 232 171 101 95 71 58 58 59 111 70 50 58 120 188 180 79 49 48 70 55 39 31 50 Slowest Speed 1650 | 250 120 190 240 160 240 240 320 260 330 230 1650 180 101 134 94 58 58 145 126 126 72 172 250 1650 259 259 75 147 138 102 90 150 90 Overloaded Moves 105 | . . . . . . . . . . . . . . . . . . . 11 68 26 . . . . . . . . . . . . Propulsion Burnouts . | . . . . . . . . . . . . . . . . . . . . . . . . . . . . . . . . . . Robots Hopped 17 | . . . . . . . . . . . . . . 3 . . . . 2 5 . . . . . . 5 . . 2 . . . Cave-ins Triggered . | . . . . . . . . . . . . . . . . . . . . . . . . . . . . . . . . . . Teleports 1 | . . . . . . . . . . . . . . . . . . . . . . . . . 1 . . . . . . . . Microwarps 37 | . . . . . . . . . . . . . . . . . . . . . . . . . . . . . . . 20 14 3 Exploration Rate (%) 59 | 4 46 97 43 99 70 100 12 45 99 11 74 71 83 54 30 97 97 62 97 9 81 25 93 99 87 61 14 92 27 69 41 36 10 Regions Visited 33 Branch Regions 22 Pre-discovered Areas 17 | . . 1 . . . . . 2 7 . . . . . . 2 1 3 . . . . 1 . . . . . . . . . . Known Exits Taken 22 | . . . . . . . 1 1 . 1 1 1 1 1 1 1 1 1 1 . . 1 1 1 1 1 1 1 1 1 1 . . Unknown Exits Taken 9 | 1 1 1 1 1 1 1 . . 1 . . . . . . . . . . . . . . . . . . . . . . 1 . Scrap Searched 20 | . . 1 . 1 . 1 . . . . . . . . . 3 1 . 3 . . . 2 4 . 4 . . . . . . . Spaces Dug 568 | . . . . . . . . . . . 6 . . 343 26 . 1 . . . . 6 . 1 5 . 8 19 27 12 53 39 22 Terrain Destroyed 911 | . . . 23 . . 78 . . . . 19 15 . 343 26 . 55 . 2 . . 6 . 8 9 14 8 30 50 20 96 46 63 Melee 94 | . . . . . . . . . . . 6 . . 13 26 . 1 . . . . 6 . 1 . . 8 19 13 1 . . . Projectile 205 | . . . . . . 1 . . . . . . . 4 . . . . . . . . . 7 6 3 . 3 36 19 60 21 45 AOE 606 | . . . 23 . . 77 . . . . 13 15 . 326 . . 54 . . . . . . . 3 11 . 8 . . 33 25 18 Terrain Rammed . | . . . . . . . . . . . . . . . . . . . . . . . . . . . . . . . . . . Walls Destroyed . | . . . . . . . . . . . . . . . . . . . . . . . . . . . . . . . . . . Machines Disabled . | . . . . . . . . . . . . . . . . . . . . . . . . . . . . . . . . . . Actions | -11 -10 -10 -9 -9 -9 -8 -8 -8 -8 -6 -6 -6 -6 -6 -5 -5 -5 -5 -4 -4 -4 -4 -4 -4 -4 -3 -3 -3 -2 -2 -2 -1 -1 --------- Run | Yrd Mat Min Mat Min Exi Min Mat Sto Rec Fac Ext Cet Arc Hub Fac Upp Upp Zhi Pro Fac Was Fac Upp Upp War Pro Res Tes Res Qua Sec Acc Com Total 30103 | 54 221 524 660 541 392 691 85 293 891 381 989 281 76 473 1171 1521 1551 747 2056 318 130 974 1247 2720 932 4109 569 1365 1344 853 940 780 224 Wait 7525 | . 12 9 80 2 . 23 . 6 28 5 171 65 . 7 74 163 263 427 571 30 4 45 213 1415 24 3378 28 106 271 31 59 7 8 Move 19870 | 40 196 488 443 523 389 625 80 213 637 348 614 180 72 418 975 1298 1239 269 1422 270 99 813 1006 1162 766 694 472 1027 895 716 652 711 118 Hop 13 | . . . . . . . . . . . . . . 3 . . . . 1 3 . . . . . . 4 . . 2 . . . Pick Up 359 | 8 1 11 21 1 1 5 1 20 14 10 13 8 2 3 26 6 2 11 3 2 1 18 9 24 13 4 14 39 11 18 33 2 4 Fast Attach 96 | 4 1 . 9 . . . 1 4 1 2 . 1 . . 2 . . 5 . . . 9 . 4 9 1 5 3 13 4 9 6 3 Attach 185 | 2 . 3 15 . . 1 2 5 3 4 7 5 . 1 6 1 1 6 . 1 . 5 5 13 7 5 9 11 7 10 29 10 11 Detach 88 | . . . . . . . . . 3 . 7 3 . . . . . 4 . . . 6 2 2 8 2 6 2 7 6 15 5 10 Swap 325 | . . 1 6 1 1 7 . 10 3 1 11 5 1 14 17 14 20 2 24 8 3 28 3 7 9 1 7 39 39 20 17 2 4 Drop 370 | . . 2 16 1 1 . . 15 23 10 16 7 . 5 22 6 1 17 4 1 2 20 7 27 29 5 10 39 28 19 21 5 11 Fire 665 | . 9 8 69 13 . 27 . 3 6 . 11 7 . 6 11 19 17 . 31 3 21 21 1 51 23 19 4 30 59 23 96 25 52 Melee 280 | . . . . . . . . 17 17 1 55 . 1 15 36 14 7 5 . . . 9 1 11 . . 10 63 14 4 . . . Ram 1 | . . . . . . . . . 1 . . . . . . . . . . . . . . . . . . . . . . . . Kick 23 | . 2 1 . . . . . . 1 . 2 . . . . . . . . . . . . . . . . . . . 7 7 3 Crush 11 | . . . 1 . . 3 1 . . . . . . 1 2 . 1 . . . . . . . 2 . . . . . . . . Escape Stasis 34 | . . . . . . . . . . . 26 . . . . . . . . . . . . . . . . 6 . . 2 . . Rewire 257 | . . 1 . . . . . . 154 . 56 . . . . . . 1 . . . . . 4 41 . . . . . . . . Trap 1 | . . . . . . . . . . . . . . . . . . . . . . . . . 1 . . . . . . . . Miscellaneous . | . . . . . . . . . . . . . . . . . . . . . . . . . . . . . . . . . . Route ------- -11/Scrapyard -10/Materials (discovered 3 exits: *Mat / *Min x2) -10/Mines (discovered 2 exits: *Mat x2) -9/Materials (discovered 2 exits: *Mat / [*Min]) -9/Mines (discovered 4 exits: *Mat x2 / [*Exi] / [*Zio]) -9/Exiles (discovered 2 exits: [*Min x2]) -8/Mines (discovered 2 exits: *Mat x2) -8/Materials -8/Storage -8/Recycling -6/Factory (discovered 2 exits: *Low / *Ext) -6/Extension (discovered 2 exits: *Fac / *Cet) -6/Cetus (discovered 2 exits: *Fac / *Arc) -6/Archives (discovered 2 exits: *Hub x2) -6/Hub_04(d) (discovered 3 exits: *Fac x3) -5/Factory -5/Upper Caves -5/Upper Caves (discovered 2 exits: *Fac / *Zhi) -5/Zhirov -4/Proximity Caves -4/Factory (discovered 3 exits: *Res / Upp x2) -4/Waste -4/Factory (discovered 4 exits: *Res x2 / *Upp x2) -4/Upper Caves -4/Upper Caves (discovered 2 exits: *Res / *War) -4/Warlord -3/Proximity Caves -3/Research (discovered 5 exits: Res x3 / *Tes x2) -3/Testing -2/Research (discovered 2 exits: *Acc / *Qua) -2/Quarantine -2/Section 7 -1/Access (discovered 2 exits: [Sur] / *Com) -1/Command History --------- Turn | Location | Event 23 | -11/Scrapyard | Discovered new exit (range 16) 76 | -11/Scrapyard | Entered Materials 198 | -10/Materials | Discovered new exit (range 16) 244 | -10/Materials | Discovered new exit (range 15) 278 | -10/Materials | Discovered new exit (range 3) 305 | -10/Materials | Build established: Mutant 356 | -10/Materials | Entered Mines 368 | -10/Mines | Met a Derelict bent on vengeance 532 | -10/Mines | Core integrity fell below 50% 1006 | -10/Mines | Learned location of Storage (-8) 1009 | -10/Mines | Discovered new exit (range 14) 1150 | -10/Mines | Discovered new exit (range 5) 1222 | -10/Mines | Joined a pair of Derelicts in attacking an 0b10 outpost 1322 | -10/Mines | Core integrity fell below 20% 1325 | -10/Mines | Entered Materials 1325 | -9/Materials | Evolved 2 slots: Utility x2 1863 | -9/Materials | Lost 9 parts (2n3u4w) 1933 | -9/Materials | Lost 4 parts (2p1n1u) 2091 | -9/Materials | Discovered new exit (range 15) 2302 | -9/Materials | Core integrity fell below 50% 2372 | -9/Materials | Discovered new exit (range 6) 2380 | -9/Materials | Entered Mines 2473 | -9/Mines | Deemed a non-threat by the Exiles lab entrance 2473 | -9/Mines | Discovered new exit (range 5) 2536 | -9/Mines | Received a Rocket Launcher from a helpful Derelict 2558 | -9/Mines | Learned location of 1 exit from Materials 2560 | -9/Mines | Build established: Scavenger-Mutant 2662 | -9/Mines | Discovered new exit (range 5) 2726 | -9/Mines | Discovered new exit (range 12) 2838 | -9/Mines | A Derelict revealed a hidden shortcut to a safe place 2882 | -9/Mines | Learned Materials emergency access door positions 3030 | -9/Mines | Received a Mining Laser from a helpful Derelict 3256 | -9/Mines | Entered Exiles 3256 | -9/Exiles | Accompanied by 1 ally 3282 | -9/Exiles | Discovered new exit (range 15) 3338 | -9/Exiles | Met 8R-AWN 3360 | -9/Exiles | Met EX-HEX 3447 | -9/Exiles | Met EX-DEC 3586 | -9/Exiles | Discovered new exit (range 14) 3745 | -9/Exiles | Met EX-BIN 4064 | -9/Exiles | Entered Mines 5063 | -8/Mines | Discovered new exit (range 9) 5362 | -8/Mines | Discovered new exit (range 8) 5682 | -8/Mines | Entered Materials 5682 | -8/Materials | Evolved 2 slots: Propulsion x2 5683 | -8/Materials | Identified exit to Storage 5873 | -8/Materials | Entered Storage 5895 | -8/Storage | Build established: Mutant 5903 | -8/Storage | Lost 3 parts (2n1u) 5914 | -8/Storage | Identified exit to Recycling 6305 | -8/Storage | Lost 3 parts (1n2u) 6412 | -8/Storage | Used back door to open Recycling access 6419 | -8/Storage | Entered Recycling 6419 | -8/Recycling | Accompanied by 1 ally 6421 | -8/Recycling | Found Scrap Engine 6594 | -8/Recycling | P-60 Hacker assimilated allied Technician 3a 7037 | -8/Recycling | Discovered new exit (range 5) 7072 | -8/Recycling | Build established: Commander-Construct 8194 | -8/Recycling | Entered Factory 8194 | -6/Factory | Accompanied by 19 allies 8194 | -6/Factory | Evolved 4 slots: Propulsion x2, Utility x2 8446 | -6/Factory | Discovered new exit (range 15) 8490 | -6/Factory | Identified exit to Lower Caves 8544 | -6/Factory | Search patrols dispatched 8671 | -6/Factory | Discovered new exit (range 15) 8704 | -6/Factory | Identified exit to Extension 8707 | -6/Factory | Entered Extension 8707 | -6/Extension | Accompanied by 16 allies 8816 | -6/Extension | Rescued a captive Derelict 8816 | -6/Extension | Rescued a captive Derelict 8820 | -6/Extension | Lost 4 allies 8943 | -6/Extension | Rescued a captive Derelict 8944 | -6/Extension | Rescued a captive Derelict 9036 | -6/Extension | Rescued A7 9067 | -6/Extension | Rescued a captive Derelict 9176 | -6/Extension | Rescued a captive Derelict 9177 | -6/Extension | Rescued a captive Derelict 9217 | -6/Extension | Spotted B-75 Beast 9231 | -6/Extension | Spotted B-75 Beast 9246 | -6/Extension | Extracted ID and sensor layout for unrecognized location from A7's data core 9254 | -6/Extension | Allies destroyed B-75 Beast 9261 | -6/Extension | Destroyed B-75 Beast 9326 | -6/Extension | Lost 8 allies 9353 | -6/Extension | Rescued a captive Derelict 9353 | -6/Extension | Rescued a captive Derelict 9411 | -6/Extension | Rescued a captive Derelict 9412 | -6/Extension | Rescued a captive Derelict 9449 | -6/Extension | Rescued a captive Derelict 9449 | -6/Extension | Rescued a captive Derelict 9477 | -6/Extension | Rescued a captive Derelict 9520 | -6/Extension | Rescued a captive Derelict 9610 | -6/Extension | Rescued a captive Derelict 9641 | -6/Extension | Rescued a captive Derelict 9667 | -6/Extension | Lost 4 allies 9822 | -6/Extension | Lost 3 allies 9833 | -6/Extension | Rescued a captive Derelict 9835 | -6/Extension | Rescued a captive Derelict 10413 | -6/Extension | Discovered new exit (range 10) 10415 | -6/Extension | Discovered new exit (range 6) 10447 | -6/Extension | Identified exit to Factory 10461 | -6/Extension | Identified exit to Cetus 10620 | -6/Extension | Entered Cetus 10620 | -6/Cetus | Accompanied by 14 allies 10643 | -6/Cetus | Spotted Cetus Guard 10644 | -6/Cetus | Spotted Cetus Guard 10645 | -6/Cetus | Spotted Cetus Guard 10654 | -6/Cetus | Spotted Cetus Guard 10663 | -6/Cetus | Allies destroyed Cetus Guard 10669 | -6/Cetus | Allies destroyed Cetus Guard 10674 | -6/Cetus | Allies destroyed Cetus Guard 10704 | -6/Cetus | Lost 4 allies 10821 | -6/Cetus | Discovered new exit (range 19) 10855 | -6/Cetus | Spotted Cetus Guard 10858 | -6/Cetus | Spotted Cetus Guard 10859 | -6/Cetus | Spotted Cetus Guard 10865 | -6/Cetus | Spotted Cetus Guard 10866 | -6/Cetus | Discovered exit to Factory (range 19) 10872 | -6/Cetus | Destroyed Cetus Guard 10875 | -6/Cetus | Destroyed Cetus Guard 10875 | -6/Cetus | Destroyed Cetus Guard 10876 | -6/Cetus | Destroyed Cetus Guard 10892 | -6/Cetus | Met Revision 17 10906 | -6/Cetus | Lost 5 allies 10957 | -6/Cetus | Identified exit to Archives 11041 | -6/Cetus | Entered Archives 11041 | -6/Archives | Accompanied by 4 allies 11055 | -6/Archives | Met Zhirov 11058 | -6/Archives | Discovered new exit (range 19) 11061 | -6/Archives | Reinforcements dispatched to Archives 11062 | -6/Archives | Discovered new exit (range 19) 11067 | -6/Archives | Read partially decrypted archive contents 11106 | -6/Archives | Reinforcements dispatched to Archives 11108 | -6/Archives | Zhirov warped through subspace 11116 | -6/Archives | Lost 3 allies 11118 | -6/Archives | Identified exit to Hub_04(d) 11120 | -6/Archives | Entered Hub_04(d) 11120 | -6/Hub_04(d) | Accompanied by 1 ally 11181 | -6/Hub_04(d) | Build established: Construct 11264 | -6/Hub_04(d) | Spotted B-75 Beast 11474 | -6/Hub_04(d) | Discovered exit to Factory (range 5) 11506 | -6/Hub_04(d) | Discovered exit to Factory (range 9) 11552 | -6/Hub_04(d) | Discovered exit to Factory (range 11) 11578 | -6/Hub_04(d) | Network Hub disabled 11578 | -6/Hub_04(d) | Network Hub disabled 11601 | -6/Hub_04(d) | Destroyed 8 combat bots 11612 | -6/Hub_04(d) | Entered Factory 11612 | -5/Factory | Evolved 2 slots: Utility x2 12177 | -5/Factory | Fabricated Imp. Component Analysis Suite (x1) 12557 | -5/Factory | Discovered new exit (range 15) 12575 | -5/Factory | Identified exit to Upper Caves 12575 | -5/Factory | Entered Upper Caves 12630 | -5/Upper Caves | Learned Factory garrison access intel 12745 | -5/Upper Caves | Learned location of Warlord (-4) 12841 | -5/Upper Caves | Found Alien Artifact 12879 | -5/Upper Caves | Build established: Scavenger-Construct 13307 | -5/Upper Caves | Destroyed 8 combat bots 13545 | -5/Upper Caves | Discovered new exit (range 7) 13550 | -5/Upper Caves | Identified exit to Upper Caves 13603 | -5/Upper Caves | Entered another Upper Caves area 13611 | -5/Upper Caves | Discovered new exit (range 13) 13638 | -5/Upper Caves | Learned 4 Factory zone layouts 13714 | -5/Upper Caves | Ambushed by research squad 14049 | -5/Upper Caves | Build established: Scavenger-Skirmisher 14362 | -5/Upper Caves | Attracted the attention of an 0b10 outpost 14612 | -5/Upper Caves | Discovered new exit (range 6) 14663 | -5/Upper Caves | Build established: Scavenger-Mutant 14674 | -5/Upper Caves | Identified exit to Zhirov 14675 | -5/Upper Caves | Entered Zhirov 14675 | -5/Zhirov | Discovered new exit (range 4) 14696 | -5/Zhirov | Learned location of Testing (-3) 14696 | -5/Zhirov | Learned location of Command (-1) 14720 | -5/Zhirov | Found Alien Artifact 14720 | -5/Zhirov | Identified Integrated Dissipator 14720 | -5/Zhirov | Installed Integrated Dissipator, increased core heat dissipation (+20) 15122 | -5/Zhirov | Build established: Construct 15243 | -5/Zhirov | Found Alien Artifact 15303 | -5/Zhirov | Identified exit to Proximity Caves 15316 | -5/Zhirov | Entered Proximity Caves 16836 | -4/Proximity Caves | Attracted the attention of an 0b10 outpost 17297 | -4/Proximity Caves | Attracted the attention of an 0b10 checkpoint 17370 | -4/Proximity Caves | Learned 4 Research zone layouts 17433 | -4/Proximity Caves | Discovered new exit (range 9) 17450 | -4/Proximity Caves | Learned location of 1 exit from Proximity Caves 17465 | -4/Proximity Caves | Identified exit to Factory 17598 | -4/Proximity Caves | Entered Factory 17598 | -4/Factory | Evolved 2 slots: Power x1, Propulsion x1 17600 | -4/Factory | Loaded intel: 4 garrison access locations 17773 | -4/Factory | Discovered new exit (range 12) 17785 | -4/Factory | Identified exit to Research 17798 | -4/Factory | Identified exit to Upper Caves 17849 | -4/Factory | Manually triggered Chute Trap 17849 | -4/Factory | Sucked down chute 17849 | -4/Factory | Entered Waste 17861 | -4/Waste | Spotted C-40 Crusher 17861 | -4/Waste | Found Prototype Device 17864 | -4/Waste | EMP discharged 17868 | -4/Waste | Destroyed C-40 Crusher 17877 | -4/Waste | Spotted C-40 Crusher 17879 | -4/Waste | Destroyed C-40 Crusher 17888 | -4/Waste | Spotted C-40 Crusher 17891 | -4/Waste | Spotted C-40 Crusher 17896 | -4/Waste | Destroyed C-40 Crusher 17896 | -4/Waste | Spotted C-40 Crusher 17898 | -4/Waste | Build established: Hacker-Construct 17907 | -4/Waste | Destroyed C-40 Crusher 17915 | -4/Waste | Destroyed C-40 Crusher 17927 | -4/Waste | Spotted C-40 Crusher 17935 | -4/Waste | Destroyed C-40 Crusher 17948 | -4/Waste | Discovered new exit (range 10) 17954 | -4/Waste | Identified exit to Factory 17955 | -4/Waste | Entered Factory 18133 | -4/Factory | Identified Adv. EM Disruption Field 18265 | -4/Factory | Discovered exit to Research (range 11) 18370 | -4/Factory | Spotted B-86 Titan 18457 | -4/Factory | Discovered exit to Research (range 6) 18491 | -4/Factory | Build established: Hacker-Mutant 18631 | -4/Factory | Entered Upper Caves 18633 | -4/Upper Caves | Attracted the attention of an 0b10 checkpoint 18836 | -4/Upper Caves | Build established: Mutant 19014 | -4/Upper Caves | Encountered a Warlord checkpoint 19138 | -4/Upper Caves | Learned 4 Research zone layouts 19271 | -4/Upper Caves | Learned 4 Research zone layouts 19577 | -4/Upper Caves | Learned Armory stockpile data 19577 | -4/Upper Caves | Learned Research security intel 19748 | -4/Upper Caves | Discovered new exit (range 16) 19782 | -4/Upper Caves | Identified exit to Upper Caves 20090 | -4/Upper Caves | Entered another Upper Caves area 20095 | -4/Upper Caves | Discovered exit to Research (range 15) 20099 | -4/Upper Caves | Attracted the attention of an 0b10 outpost 20176 | -4/Upper Caves | Attracted the attention of an 0b10 checkpoint 20228 | -4/Upper Caves | Destroyed 9 combat bots 20230 | -4/Upper Caves | Lost 7 parts (1p1n4u1w) 20636 | -4/Upper Caves | Learned 8 Research zone layouts 20671 | -4/Upper Caves | Learned Research trap positions 21396 | -4/Upper Caves | Learned Research terminal intel 21927 | -4/Upper Caves | Build established: Derelict-Mutant 21955 | -4/Upper Caves | Encountered a Warlord checkpoint 23211 | -4/Upper Caves | Build established: Mutant 23276 | -4/Upper Caves | Discovered new exit (range 8) 23848 | -4/Upper Caves | Identified exit to Warlord 23914 | -4/Upper Caves | Entered Warlord 24457 | -4/Warlord | Met Warlord 24482 | -4/Warlord | Warlord's base attacked by MAIN.C 24530 | -4/Warlord | Found Prototype Energy Cannon 24530 | -4/Warlord | Identified Vortex Cannon 24534 | -4/Warlord | Found Prototype Energy Gun 24535 | -4/Warlord | Identified Vortex Rifle 24539 | -4/Warlord | Found Vortex Rifle 24666 | -4/Warlord | Found Prototype Reactor 24666 | -4/Warlord | Identified Vortex Chain Reactor 24787 | -4/Warlord | Lost 4 allies 24832 | -4/Warlord | Warlord forces counterattacked 24862 | -4/Warlord | Lost 3 allies 25157 | -4/Warlord | Warlord base infiltrated, sounded retreat 25203 | -4/Warlord | Spotted Striker 25239 | -4/Warlord | Spotted Executioner 25272 | -4/Warlord | Lost 5 allies 25317 | -4/Warlord | Attacked by Warlord forces 25378 | -4/Warlord | Core integrity fell below 50% 25412 | -4/Warlord | Spotted Striker 25414 | -4/Warlord | Identified Transdimensional Reconstructor 25414 | -4/Warlord | Warped through subspace 25444 | -4/Warlord | Discovered new exit (range 15) 25444 | -4/Warlord | Spotted B-90 Cyclops 25469 | -4/Warlord | Identified exit to Proximity Caves 25474 | -4/Warlord | Entered Proximity Caves 29455 | -3/Proximity Caves | Entered Research 29455 | -3/Research | Evolved 2 slots: Utility x2 29456 | -3/Research | Identified exit to Research 29456 | -3/Research | Identified exit to Testing 29457 | -3/Research | Loaded intel: 116 trap records 29459 | -3/Research | Loaded intel: 24 terminal locations 29655 | -3/Research | Revision forces began assault on 0b10 29808 | -3/Research | Entered Testing 29927 | -3/Testing | Found Prototype Device 29934 | -3/Testing | Identified Exp. Focal Shield 29959 | -3/Testing | Found Prototype Energy Cannon 29986 | -3/Testing | Identified Imp. Potential Cannon 30015 | -3/Testing | Found Prototype Energy Cannon 30171 | -3/Testing | Found Prototype Device 30187 | -3/Testing | Found Prototype Ballistic Cannon 30194 | -3/Testing | Identified Perforator 30237 | -3/Testing | Identified Null Cannon 30237 | -3/Testing | Found Prototype Ballistic Gun 30259 | -3/Testing | Discovered exit to Research (range 9) 30284 | -3/Testing | Found Prototype Energy Cannon 30323 | -3/Testing | Identified Exp. Hardlight Generator 30408 | -3/Testing | Found Prototype Device 30412 | -3/Testing | Identified Hyp. Multirail 30412 | -3/Testing | Identified Exp. EM Disruption Field 30412 | -3/Testing | Identified Disintegrator 30412 | -3/Testing | Identified Dimensional Node Initializer 30461 | -3/Testing | Found Prototype Processor 30465 | -3/Testing | Identified Exp. Targeting Computer 30485 | -3/Testing | Found Prototype Device 30535 | -3/Testing | Identified Exp. Shield Generator 30588 | -3/Testing | Found Prototype Ballistic Cannon 30789 | -3/Testing | Entered Research 30789 | -2/Research | Warlord forces began assault on 0b10 30789 | -2/Research | Evolved 2 slots: Power x1, Propulsion x1 30889 | -2/Research | Fabricated Hvy. Siege Treads (x1) 30899 | -2/Research | Research machine network offline 30943 | -2/Research | Spotted 5F-8OB(K) 31002 | -2/Research | Identified Omega Cannon 31193 | -2/Research | Borebot progress halted 31435 | -2/Research | Found Prototype Device 31444 | -2/Research | Identified Exp. Thermal Shield 31492 | -2/Research | Borebot progress halted 31495 | -2/Research | Borebot progress halted 31604 | -2/Research | Discovered new exit (range 16) 31659 | -2/Research | Identified exit to Access 31779 | -2/Research | Found Prototype Launcher 31800 | -2/Research | Identified Mni. Smartbomb Launcher 31811 | -2/Research | Found Mni. Smartbomb Launcher 31831 | -2/Research | Found Prototype Device 31831 | -2/Research | Identified Adv. Kinecellerator 31837 | -2/Research | Found Prototype Processor 31837 | -2/Research | Identified Exp. Core Analyzer 31843 | -2/Research | Found Exp. Targeting Computer 31864 | -2/Research | Spotted Striker 31892 | -2/Research | Destroyed Striker 31959 | -2/Research | Discovered new exit (range 15) 31972 | -2/Research | Identified exit to Quarantine 31980 | -2/Research | Entered Quarantine 32038 | -2/Quarantine | Found Alien Artifact 32051 | -2/Quarantine | Found Alien Artifact 32233 | -2/Quarantine | Found Alien Impact Weapon 32348 | -2/Quarantine | Identified Subatomic Replicator 32455 | -2/Quarantine | Identified Core Stripper 32458 | -2/Quarantine | Spotted Fortress 32463 | -2/Quarantine | Destroyed Fortress 32470 | -2/Quarantine | Found Prototype Device 32470 | -2/Quarantine | Identified Thermal Barrier 32474 | -2/Quarantine | Found Vortex Chain Reactor 32484 | -2/Quarantine | Found Prototype Protection 32497 | -2/Quarantine | Found Prototype Device 32498 | -2/Quarantine | Identified Exp. Force Field 32536 | -2/Quarantine | Discovered new exit (range 5) 32538 | -2/Quarantine | Identified exit to Section 7 32541 | -2/Quarantine | Identified Core Reset Matrix 32541 | -2/Quarantine | Used Core Reset Matrix 32543 | -2/Quarantine | Entered Section 7 32545 | -2/Section 7 | Sensed 19 artifacts in vicinity 32573 | -2/Section 7 | Found Microwarp Drive 32658 | -2/Section 7 | Found Integrated Dissipator 32659 | -2/Section 7 | Installed Integrated Dissipator, increased core heat dissipation (+20) 32681 | -2/Section 7 | Discovered exit to Access (range 15) 32682 | -2/Section 7 | Spotted S7 Guard 32685 | -2/Section 7 | Found Core Membrane 32686 | -2/Section 7 | Installed Core Membrane, gained immunity to corruption 32691 | -2/Section 7 | Identified Centrium Heavy Armor Plating 32694 | -2/Section 7 | Destroyed S7 Guard 32844 | -2/Section 7 | Found Core Expander 32846 | -2/Section 7 | Found Core Expander 32864 | -2/Section 7 | Found LRC Energy Well 32866 | -2/Section 7 | Installed LRC Energy Well, increased energy storage capacity (+250) 32868 | -2/Section 7 | Found LRC Energy Well 32868 | -2/Section 7 | Installed LRC Energy Well, increased energy storage capacity (+250) 32892 | -2/Section 7 | Build established: Alien-Mutant 32896 | -2/Section 7 | Spotted B-99 Colossus 32921 | -2/Section 7 | Integrated with Sigix Exoskeleton 32924 | -2/Section 7 | Used Subatomic Replicator to replicate Core Expander 32925 | -2/Section 7 | Installed Core Expander, added new Weapon slot 32927 | -2/Section 7 | Installed Core Expander, added new Power slot 32930 | -2/Section 7 | Installed Core Expander, added new Weapon slot 33128 | -2/Section 7 | Scanned by Researcher 33141 | -2/Section 7 | Garrison activated, responded to threat 33146 | -2/Section 7 | Sigix Exoskeleton integrity reduced to 80% 33153 | -2/Section 7 | Core integrity fell below 50% 33172 | -2/Section 7 | Destroyed 8 combat bots 33173 | -2/Section 7 | Intercept squad dispatched 33174 | -2/Section 7 | Spotted Tracker 33177 | -2/Section 7 | Sigix Exoskeleton integrity reduced to 60% 33179 | -2/Section 7 | Spotted Combat Programmer 33179 | -2/Section 7 | Spotted Tracker 33183 | -2/Section 7 | Spotted Combat Programmer 33195 | -2/Section 7 | Spotted Executioner 33195 | -2/Section 7 | Spotted Executioner 33196 | -2/Section 7 | Core integrity fell below 20% 33197 | -2/Section 7 | Entered Access 33197 | -1/Access | Evolved 2 slots: Utility x2 33202 | -1/Access | Emitted hypermatrix ping 33207 | -1/Access | Assembled emerged from beneath the floor 33210 | -1/Access | Assembled emerged from beneath the floor 33220 | -1/Access | Build established: Alien-Sigix 33260 | -1/Access | Assembled emerged from beneath the floor 33334 | -1/Access | Assembled emerged from beneath the floor 33370 | -1/Access | Assembled emerged from beneath the floor 33394 | -1/Access | Assembled emerged from beneath the floor 33433 | -1/Access | Spotted B-99 Colossus 33445 | -1/Access | Intercept squad dispatched 33464 | -1/Access | Spotted Tracker 33464 | -1/Access | Spotted Tracker 33470 | -1/Access | Discovered new exit (range 17) 33472 | -1/Access | Assembled emerged from beneath the floor 33478 | -1/Access | Spotted B-99 Colossus 33478 | -1/Access | Spotted B-99 Colossus 33491 | -1/Access | Destroyed Tracker 33510 | -1/Access | Lost 3 allies 33518 | -1/Access | Spotted Combat Programmer 33520 | -1/Access | Discovered new exit (range 18) 33526 | -1/Access | Entered Command 33531 | -1/Command | Emitted hypermatrix ping 33536 | -1/Command | Assembled emerged from beneath the floor 33577 | -1/Command | Sigix Exoskeleton integrity reduced to 40% 33577 | -1/Command | Core integrity fell below 50% 33648 | -1/Command | Spotted Combat Programmer 33694 | -1/Command | Met MAIN.C 33698 | -1/Command | 0b10 Conduit disabled 33741 | -1/Command | MAIN.C's shell transforms into a squad of autonomous robots 33741 | -1/Command | High security lockdown imminent 33741 | -1/Command | Destroyed MAIN.C Shell 33741 | -1/Command | Spotted M Shell/Def 33741 | -1/Command | Spotted M Shell/Atk 33741 | -1/Command | Spotted M Shell/Def 33741 | -1/Command | Spotted M Shell/Atk 33741 | -1/Command | Spotted M Shell/Atk 33741 | -1/Command | Spotted M Shell/Def 33741 | -1/Command | Spotted M Shell/Atk 33741 | -1/Command | Spotted M Shell/Def 33744 | -1/Command | MAIN.C activated Command garrisons 33750 | -1/Command | Spotted Combat Programmer 33752 | -1/Command | Sigix Exoskeleton integrity reduced to 20% 33766 | -1/Command | Core integrity fell below 20% 33767 | -1/Command | Exoskeleton Destroyed Last Messages --------------- 33751_ Knocked back. 33752_ Exo-853F: "Integrity reduced to 20%, immediate ERK application recommended to prevent critical system failure." 33752_ Combat Programmer resets M Shell/Atk, system corruption cleaned. 33760_ Penetrated by EMDS Slug. 33761_ EMDS Slug penetrates M Shell/Atk. 33762_ Penetrated by EMDS Slug. 33763_ Combat Programmer resets M Shell/Atk, system corruption cleaned. 33764_ Acquired 10 matter. 33764_ Penetrated by EMDS Slug. 33764_ Core Membrane filtered system corruption (1). 33764_ Kicked M Shell/Atk out of the way. 33765_ Knocked back. 33765_ Penetrated by EMDS Slug. 33765_ Kicked Combat Programmer. 33767_ Sigix Exoskeleton destroyed. Map ----- +----------------------------------------------------+ | ?????????????????????????????????????????????????? | | ?????????????????????????????????????????????????? | | ?????????????????????????????????????????????????? | | ?????????????????????????????????????????????????? | | ?????????????????????????????????????????????????? | | ?????????????????????????????????????????????????? | | ?????????????????????????????????????????????????? | | ?????????????????????????##??????????????????????? | | ????????????????????############?????????????????? | | ?????????????????##################??????????????? | | ????????????????####################?????????????? | | ??????????????########################???????????? | | ?????????????###########################??#??#???? | | ????????????###################################### | | ???????????####################################### | | ???????????####################################### | | ??????????######################################## | | ?????????######################################### | | ?????????######################################### | | ?????????######################################### | | ????????########################################## | | ????????########################################## | | ????????########################################## | | ????????#### #################################### | | ????????##### #################################### | | ???????"""" pX%####################### | | ???????? pYM####################### | | ????????""" i% Y####################### | | ????????"""" iY i % # | | ???????? " iY % # | | ???????? """ % Y Y p # | | ???????? """" ################### "# | | ????????? """""" % ################### " | | ????????? "" ################### "# | | ????????? " ################### T | | ?????????"""""" ###################//+# | | ????????? "" """""################### | | ?????????? """" """"""################### | | ?????????? " " " " ################### | | ?????????? " " " " ################### | | ??????????? " " " """" " ################### | | ????????????""" " " """" ################### | | ????????????" " " " ####################### | | ?????????????"""""" " ####################### | | ?????????????? " """"""""####################### | | ??????????????? " " " ####################### | | ?????????????????################################# | | ??????????????????################################ | | ?????????????????????############?################ | | ??????????????????????????#????????????????####### | +----------------------------------------------------+ Best States ------------- Heat Dissipation 162 Energy Generation 97 Energy Capacity 1900 Matter Stores 300 Matter Capacity 300 Sight Range 20 Robot Scan Range 16 Terrain Scan Range 24 Terrain Scan Density 10 ECM Strength 2 Jamming Range 16 Additional Mass Support 12 EM Shielding 4 Corruption Block 20 Armor Coverage 1650 Resistance: KI 50 Resistance: TH 50 Resistance: EX 50 Resistance: EM 75 Resistance: I 50 Resistance: S 50 Resistance: P 50 Utility Shielding 33 Weapon Shielding 90 Weapon Cycling 25 Phase Shifting 5 Evasion (%) 71 Targeting Accuracy 12 Target Analysis 8 Core Analysis 8 Recoil Reduction 6 Particle Charging 30 Salvage Targeting 6 Offensive Hacking 11 Defensive Hacking 14 Item Schematics ----------------- None Robot Schematics ------------------ None Fabricated ------------ Imp. Component Analysis Suite | x1 | -5/Factory | Preloaded Hvy. Siege Treads | x1 | -2/Research Alien Tech Used ----------------- Integrated Dissipator Transdimensional Reconstructor Core Stripper Core Reset Matrix Microwarp Drive Core Membrane LRC Energy Well Sigix Exoskeleton Sigix Sheargun Subatomic Replicator Core Expander Achievements -------------- Signature Confirmed Wheee! Challenges ------------ None Game ------ Seed MicrowarpMeleeSink Manual? 0 Play Time 09:20:38 Cumulative 255.1 hours Start 2024.04.29 @ 11:58:59 End 2024.04.30 @ 01:26:31 Sessions 7 Manual Loads 0 Difficulty Rogue Special Mode None Game No. 63 Rogue 63 Adventurer 0 Explorer 0 Win Type - Total 15 Types 8/2/3/1/1/0/0/0/0 Lore% 56 Gallery% 77 Achievement% 67 Wizard Run 0 Options --------- Layout 1 ASCII 0 Keyboard 0 Movement Numpad Keybinds 0 Fullscreen 1 Font 24/Smallcaps Map View 50x35 Zoom Use 1% Tactical HUD 1 Map Filters NONE Filters NONE Steam 1 RUN: 59cde0e6-8a23-4afa-8043-bf8c6057e651